Cogmind - Beta 14 @@@ ROGUE MODE // 2025.05.04 @ 00:25:47 Player: CrossedViper Result: Destroyed by Y-72 Warden with Railgun Performance ------------- Evolutions (8) 4000 Regions Visited (30) 6000 Robots Destroyed (559) 2795 Value Destroyed (23672) 23672 Prototype IDs (88) 1760 Alien Tech Used (7) 1400 Bonus (18326) 18326 TOTAL SCORE: 57953 Bonus ------- Triggered High Security 500 High Alert Combat Kills 5460 Follower Combat Kills 3551 Awakened Behemoth Slayer 1000 Network Hubs Disabled 400 Aligned with FarCom 300 Met Imprinter 300 Was Imprinted 300 Met R17 at Cetus 500 Found Hidden Lab 3000 Used Core Reset Matrix 3000 Pursued by Intercept 1000 Friendly Fire -985 Cogmind --------- Core Integrity 0/1450 Matter 255/300 Energy 100/100 System Corruption 8% Temperature Cool (9) Movement Core (50) Location -2/Section 7 Parts ------- > --- POWER (3) -------- (None) > --- PROPULSION (6) --- (None) > --- UTILITY (11) ----- Advanced Coolant Injector Advanced Signal Interpreter > --- WEAPON (4) ------- (None) > --- INVENTORY (5) ---- Huge Storage Unit Experimental Energy Well (600) AEGIS Remote Shield Peak State ------------ > --- POWER ------------ Compact Particle Reactor Quantum Reactor Reinforced Quantum Reactor > --- PROPULSION ------- Centrium Heavy Treads Cooled Linear Gravjet Cooled Linear Gravjet Combat Linear Gravjet > --- UTILITY ---------- Advanced Cryofiber Web Experimental Heat Sink Huge Storage Unit Advanced Terrain Scanner Experimental Terrain Scan Processor Experimental Melee Analysis Suite LC Capacitor > --- WEAPON ----------- Linear Accelerator Linear Accelerator Graviton Cannon CR-A16's Behemoth Slayer > --- INVENTORY -------- Quantum Reactor Experimental Energy Well Experimental Energy Well Experimental Energy Well Experimental Energy Well Advanced Matter Compressor Experimental Weapon Cycler Superdense Plating 7V-RTL's Ultimate Field AEGIS Remote Shield Deep Network Scanner Hacking Drone Bay Hypervelocity EM Gauss Rifle Tachyon Dispersion Ray Advanced Plasma Rifle Helical Railgun Helical Railgun Linear Accelerator Improved Plasma Cutter [Rating: 205] Favorites ----------- Power Micro Neutrino Core Engine Improved Ion Engine Power Core Micro Neutrino Core Reactor Quantum Reactor Propulsion Armored Heavy Treads Treads Armored Heavy Treads Leg Myomer Leg Hover Unit Cooled Linear Gravjet Flight Unit Diametric Drive Utility Huge Storage Unit Device Experimental Cooling System Storage Huge Storage Unit Processor Advanced Targeting Computer Hackware Improved Hacking Suite Protection Advanced Powered Armor Artifact LC Capacitor Weapon Enhanced Autogun Energy Gun Advanced Variable Charge Gun Energy Cannon Enhanced Nova Cannon Ballistic Gun Enhanced Autogun Ballistic Cannon Linear Accelerator Launcher Rocket Array Special Weapon Improved Plasma Cutter Piercing Weapon CR-A16's Behemoth Slayer Build | -11 -10 -10 -9 -9 -9 -8 -8 -8 -7 -7 -7 -7 -6 -6 -6 -6 -6 -6 -5 -5 -5 -5 -5 -4 -4 -4 -3 -2 -2 -2 ------- Run | Yrd Mat Min Mat Min Exi Min Mat Sto Fac Low Low Zio Pro Fac Ext Cet Arc Hub Fac Was Fac Upp Upp Fac Arm Lab Res Res Qua Sec Slots Evolved 16 | . . . 2 . . . 2 . 2 . . . . 2 . . . . 2 . . . . 2 . . 2 2 . . Power 2 | . . . . . . . . . . . . . . . . . . . 1 . . . . . . . 1 . . . Propulsion 3 | . . . 1 . . . . . . . . . . 1 . . . . . . . . . . . . 1 . . . Utility 9 | . . . . . . . 2 . 2 . . . . . . . . . 1 . . . . 2 . . . 2 . . Weapon 2 | . . . 1 . . . . . . . . . . 1 . . . . . . . . . . . . . . . . Parts Attached 425 | 7 10 4 19 3 18 24 34 7 14 2 6 1 8 9 10 14 6 11 11 1 10 4 7 45 49 7 51 20 8 5 Power 23 | 1 1 1 1 . 1 2 . . . . . . . . . . . . 1 . 2 . . 5 2 1 2 1 . 2 Engine 4 | 1 1 . 1 . . 1 . . . . . . . . . . . . . . . . . . . . . . . . Core 3 | . . 1 . . 1 1 . . . . . . . . . . . . . . . . . . . . . . . . Reactor 16 | . . . . . . . . . . . . . . . . . . . 1 . 2 . . 5 2 1 2 1 . 2 Propulsion 80 | 2 3 . 3 . 5 6 8 4 1 . . . 1 1 . 3 . . 4 . . . . 8 4 1 19 3 4 . Treads 53 | 2 3 . 3 . 5 4 8 4 1 . . . 1 1 . 3 . . 3 . . . . 5 4 . 3 2 1 . Leg 18 | . . . . . . 2 . . . . . . . . . . . . 1 . . . . . . . 11 1 3 . Wheel . | . . . . . . . . . . . . . . . . . . . . . . . . . . . . . . . Hover 7 | . . . . . . . . . . . . . . . . . . . . . . . . 1 . 1 5 . . . Flight 2 | . . . . . . . . . . . . . . . . . . . . . . . . 2 . . . . . . Utility 166 | 2 2 2 7 . 6 9 8 . 9 . 3 . . 3 4 4 5 8 6 1 2 . 4 22 27 3 16 11 2 . Device 87 | 1 . 1 1 . 1 3 3 . 3 . 1 . . 2 . 1 3 5 4 . . . 2 16 24 2 10 4 . . Storage 19 | 1 1 . 3 . 4 2 3 . . . . . . . . . . . . . . . . 2 . . 2 1 . . Processor 12 | . . . . . 1 1 1 . 2 . . . . . . 1 . . . . . . . 1 2 . 1 . 2 . Hackware 9 | . . . . . . . . . 1 . . . . . 1 . 1 1 1 . 2 . . 1 . . 1 . . . Protection 38 | . 1 1 3 . . 3 1 . 3 . 2 . . 1 3 2 1 2 1 1 . . 2 2 1 . 2 6 . . Artifact 1 | . . . . . . . . . . . . . . . . . . . . . . . . . . 1 . . . . Weapon 156 | 2 4 1 8 3 6 7 18 3 4 2 3 1 7 5 6 7 1 3 . . 6 4 3 10 16 2 14 5 2 3 Energy Gun 35 | . 4 1 4 . . . 1 . . . . . . 1 5 6 . . . . . . 1 1 3 . 8 . . . Energy Cannon 9 | . . . 1 . . . . . . . . . . . 1 . . . . . 1 . 1 1 2 . . 2 . . Ballistic Gun 67 | 2 . . 3 2 5 5 10 3 2 1 1 1 4 3 . 1 1 3 . . 5 2 . 5 2 . 2 2 . 2 Ballistic Cannon 13 | . . . . . . 1 3 . . . . . . . . . . . . . . . . 1 6 . 2 . . . Launcher 20 | . . . . 1 1 . 4 . 2 1 2 . 3 1 . . . . . . . 2 . 1 2 . . . . . Special Weapon 1 | . . . . . . . . . . . . . . . . . . . . . . . . . . 1 . . . . Impact Weapon . | . . . . . . . . . . . . . . . . . . . . . . . . . . . . . . . Slashing Weapon . | . . . . . . . . . . . . . . . . . . . . . . . . . . . . . . . Piercing Weapon 11 | . . . . . . 1 . . . . . . . . . . . . . . . . 1 1 1 1 2 1 2 1 Special Melee Weapon . | . . . . . . . . . . . . . . . . . . . . . . . . . . . . . . . Unidentified Prototypes 55 | . . . 3 . 1 5 2 1 1 . . . . 1 5 3 . 2 1 . 3 . . 9 2 4 10 1 1 . Corrupted Parts 9 | . . . . . . . . . . . . . . . . . . . . . . . . . 3 1 4 1 . . System Corruption 40 | . . . . . . . . . . . . . . . . . . . . . . . . . 15 8 15 2 . . Parts Lost 94 | . 4 2 . . 6 7 3 . 1 . . . 2 . . 5 . 3 . . . . 1 8 10 4 22 5 1 10 Power 9 | . 2 . . . 1 1 . . . . . . . . . . . . . . . . . 2 . . 2 . . 1 Propulsion 27 | . 1 1 . . 3 4 1 . . . . . . . . 1 . . . . . . . . 2 1 6 2 . 5 Utility 26 | . . 1 . . . . . . 1 . . . 1 . . 1 . 3 . . . . 1 2 4 1 7 2 1 1 Weapon 32 | . 1 . . . 2 2 2 . . . . . 1 . . 3 . . . . . . . 4 4 2 7 1 . 3 Highest Loss Streak 8 | . 2 2 . . 6 3 1 . 1 . . . 2 . . 5 . 1 . . . . 1 5 5 2 8 4 1 5 To Critical Strikes 5 | . . . . . 4 . . . . . . . . . . . . . . . . . . . . . 1 . . . Average Slot Usage (%) 86 | . 98 94 97 100 98 83 88 90 90 92 92 92 91 84 85 81 85 74 69 70 86 88 87 85 82 74 72 47 33 33 Engine 1 | . 13 . 10 11 5 1 . . . . . . . . . . . . . . . . . . . . . . . . Core 5 | . . 11 . . 4 9 9 9 7 7 7 7 7 6 6 6 6 6 5 5 5 5 5 . . . . . . . Reactor 2 | . . . . . . . . . . . . . . . . . . . 4 5 5 5 5 9 10 8 9 4 . 3 Treads 15 | . 27 27 31 33 32 21 18 18 15 15 15 15 15 13 13 12 13 13 10 11 11 11 11 9 9 6 1 7 7 3 Leg 1 | . . . . . . 3 . . . . . . . . . . . . . . . . . . . . 10 5 9 8 Device 11 | . 10 11 10 11 5 . 15 9 8 7 7 7 7 11 13 9 12 13 20 17 13 11 10 22 27 25 15 5 4 4 Storage 6 | . 14 13 8 11 10 5 9 9 7 7 7 7 7 6 6 6 6 6 5 5 5 5 5 5 5 5 3 . . . Processor 7 | . . . . . 5 6 8 9 11 15 15 15 15 13 8 6 6 6 5 5 5 5 3 . 6 8 4 4 9 7 Hackware 2 | . . . . . . . . . . . . . . . 4 1 5 3 5 5 12 17 17 10 . . . 3 . . Protection 6 | . 3 1 2 . . 7 2 9 14 15 14 15 14 6 5 11 7 5 1 5 1 . 1 5 2 . 1 4 . . Energy Gun 3 | . 18 27 15 7 . . . . . . . . . . 12 16 13 5 . . . . 2 3 2 1 4 4 . . Ballistic Gun 16 | . 9 . 16 25 32 18 22 26 23 23 18 20 22 22 6 8 12 11 5 5 20 16 14 12 3 . 3 2 . 3 Ballistic Cannon 1 | . . . . . . 2 3 . . . . . . . . . . . . . . . . 1 8 11 4 . . . Peak Build Rating 205 | 7 8 10 22 22 31 67 79 76 87 83 84 84 86 109 107 127 121 138 144 145 145 130 134 146 161 175 205 154 89 93 Average Rating 89 | 5 6 9 19 21 20 52 72 75 82 82 82 83 85 105 104 113 119 117 141 144 129 129 131 138 148 139 166 113 72 70 On Entrance 85 | . 7 6 3 22 19 31 66 74 76 82 82 83 84 81 106 106 116 120 134 140 145 130 130 134 136 155 175 93 46 81 Naked Turns . | . . . . . . . . . . . . . . . . . . . . . . . . . . . . . . . Heaviest Build 275 | 12 20 20 39 39 73 75 116 111 122 118 122 121 121 122 115 120 124 122 130 138 138 131 149 207 212 192 275 95 3 37 Greatest Support 151 | 40 40 20 60 60 60 83 83 80 80 80 80 80 90 120 120 140 140 140 140 140 140 140 140 150 150 150 151 120 3 60 Greatest Overweight (x) 6 | . . . 4 . 1 2 1 1 1 1 1 1 1 1 . 1 . . 2 1 . . 1 2 1 2 5 1 . 6 Average Overweight (x) . | . . . . . . . . 1 1 1 1 1 1 . . . . . . . . . . . 1 1 1 . . . Largest Inventory Capacity 25 | 8 10 10 15 15 20 20 25 25 25 25 25 25 25 25 25 25 25 25 25 25 25 25 25 25 25 25 25 5 5 5 Average Capacity 21 | 7 9 9 10 15 18 11 24 25 25 25 25 25 25 25 25 25 25 25 25 25 25 25 25 25 25 25 24 5 5 5 Most Carried 25 | 5 10 10 15 15 20 20 25 25 25 25 25 25 25 25 25 25 25 25 25 25 25 25 25 25 25 25 25 5 5 5 Average Carried 20 | 2 5 9 8 15 12 10 23 24 24 25 24 24 24 21 24 23 24 24 24 24 24 25 24 24 23 20 22 4 4 4 Final Capacity 25 | 8 10 5 15 15 20 20 25 25 25 25 25 25 25 25 25 25 25 25 25 25 25 25 25 25 25 25 5 5 5 5 Final Carried 25 | 2 9 5 15 15 20 20 25 25 25 25 24 25 24 25 25 24 25 25 25 25 25 25 25 25 25 25 5 5 5 3 Class Distribution -------------------- 42% | Scavenger-Gunner 36% | Scavenger-Tank 9% | Scavenger-Mutant 3% | Mutant Dominant Class ---------------- Mutant | -10/Materials Scavenger-Mutant | -10/Mines Scavenger-Gunner | -9/Materials Scavenger-Gunner | -9/Mines Scavenger-Gunner | -9/Exiles Scavenger-Mutant | -8/Mines Scavenger-Gunner | -8/Materials Scavenger-Gunner | -8/Storage Scavenger-Tank | -7/Factory Scavenger-Tank | -7/Lower Caves Scavenger-Tank | -7/Lower Caves Scavenger-Tank | -7/Zion Scavenger-Tank | -6/Proximity Caves Scavenger-Gunner | -6/Factory Commander-Gunner | -6/Extension Scavenger-Tank | -6/Cetus Scavenger-Gunner | -6/Archives Scavenger-Gunner | -6/Hub_04(d) Scavenger-Gunner | -5/Factory Scavenger-Gunner | -5/Waste Scavenger-Gunner | -5/Factory Scavenger-Gunner | -5/Upper Caves Scavenger-Gunner | -5/Upper Caves Scavenger-Tank | -4/Factory Scavenger-Skirmisher | -4/Armory Scavenger-Mutant | -4/Lab Scavenger-Tank | -3/Research Hacker-Mutant | -2/Research Scavenger-Mutant | -2/Quarantine Scavenger-Mutant | -2/Section 7 Resources | -11 -10 -10 -9 -9 -9 -8 -8 -8 -7 -7 -7 -7 -6 -6 -6 -6 -6 -6 -5 -5 -5 -5 -5 -4 -4 -4 -3 -2 -2 -2 ----------- Run | Yrd Mat Min Mat Min Exi Min Mat Sto Fac Low Low Zio Pro Fac Ext Cet Arc Hub Fac Was Fac Upp Upp Fac Arm Lab Res Res Qua Sec Matter Collected 16355 | 326 238 30 412 108 754 928 1484 710 687 212 277 110 329 165 321 279 327 1107 439 70 320 69 246 1426 2017 24 2671 125 . 144 Remotely 244 | . . . . . . . . . . . . . . . . . . . 244 . . . . . . . . . . . Salvage Created 24474 | 171 967 189 1154 147 434 1823 2218 1126 815 341 311 . 570 245 209 484 565 2558 637 71 570 106 382 2453 2240 24 2653 598 . 413 Parts 1259 | 11 70 16 63 12 63 80 127 77 37 17 17 . 24 14 14 13 25 114 34 5 27 1 14 97 100 . 139 27 . 21 Haulers Intercepted 22 | . 2 . 5 . . . 5 4 2 . . . . . . . . 2 . . 1 . . 1 . . . . . . Recyclers Shooed 18 | 1 . . 1 2 . . 4 2 2 . . . . . . . . . 4 . . . . 1 . . 1 . . . Parts Field Recycled . | . . . . . . . . . . . . . . . . . . . . . . . . . . . . . . . Retrieved Matter . | . . . . . . . . . . . . . . . . . . . . . . . . . . . . . . . Parts Self-Destructed 77 | . . . . . . . . . . 15 17 1 32 . . . . . . . . . 12 . . . . . . . Prevented 2 | . . . . . . . . . . . . . 2 . . . . . . . . . . . . . . . . . Kills | -11 -10 -10 -9 -9 -9 -8 -8 -8 -7 -7 -7 -7 -6 -6 -6 -6 -6 -6 -5 -5 -5 -5 -5 -4 -4 -4 -3 -2 -2 -2 ------- Run | Yrd Mat Min Mat Min Exi Min Mat Sto Fac Low Low Zio Pro Fac Ext Cet Arc Hub Fac Was Fac Upp Upp Fac Arm Lab Res Res Qua Sec Combat Hostiles Destroyed 397 | . 19 5 18 7 3 12 45 19 13 9 9 . 15 5 3 6 4 26 9 . 6 3 6 47 52 1 42 7 . 6 Melee 16 | . . . . . . 7 . . 1 . . . . . . . . . . . . . . . . 1 3 . . 4 Guns 241 | . 18 5 17 4 2 2 28 19 11 7 5 . 6 2 3 5 3 24 9 . 5 . . 23 9 . 30 2 . 2 Cannons 62 | . . . . . . 3 9 . . . . . . . . . . . . . 1 1 3 3 33 . 7 2 . . AOE 61 | . . . . 3 1 . 8 . 1 2 4 . 9 3 . . . 2 . . . 2 . 20 6 . . . . . Classes Destroyed 26 | 2 6 1 1 . 3 1 3 . 1 . 1 . 1 1 . . . 1 . 1 . . . 2 . . 1 . . . Worker 40 | . 2 . 1 . . 6 5 2 3 . . . . 1 . . . 9 . . 2 . . 4 . . 4 . . 1 Builder 16 | . 1 . . . . 2 . . 1 . . . . . 1 . . 3 . . . . . 4 . . 4 . . . Tunneler 8 | 3 . . 1 1 . 2 1 . . . . . . . . . . . . . . . . . . . . . . . Hauler 22 | . 2 . 5 . . . 5 4 2 . . . . . . . . 2 . . 1 . . 1 . . . . . . Recycler 26 | 1 . . 2 1 . 13 1 . 1 . . . . . . . . 3 . . 1 . . 1 . . 1 . . 1 Mechanic 6 | . . . . . . . 3 . . . . . 1 . . . . . . . . . . 2 . . . . . . Operator 14 | . 1 . . . . . 2 1 . . . . . . . . 7 1 1 . . . . 1 . . . . . . Turret 1 | . . . . . 1 . . . . . . . . . . . . . . . . . . . . . . . . . Watcher 17 | . 2 . 1 . . . 4 1 1 . . . . . 1 2 . 4 1 . . . . . . . . . . . Swarmer 70 | . . 3 6 7 . 4 8 6 . 3 . . 4 . . . . 3 . . . . . . 13 . 6 2 . 5 Saboteur 1 | . . . . . . . . . . . . . . . . . . . . . . . . . . . 1 . . . Grunt 147 | . 19 2 6 . . 6 22 4 8 4 4 . 7 2 2 . . 10 5 . 2 2 2 20 11 . 9 . . . Brawler 9 | . . . . . . . 2 . 1 . . . . 1 . . . . 1 . . 1 . . 2 . 1 . . . Duelist 6 | . . . . . . . 2 . 1 . . . . . . . . . . . . . . 1 1 . 1 . . . Protector 3 | . . . . . . . . . . . . . . . . . . . . . . . . 2 1 . . . . . Sentry 51 | . . . 6 . . . 8 9 1 1 1 . 2 . 1 . 4 3 1 . . . 1 6 3 . . 3 . 1 Specialist 12 | . . . . . . . . . . . . . . 2 . . . 4 2 . . . . 2 2 . . . . . Hunter 21 | . . . . . . 1 3 . . . 1 . . . . . . . . . . . 2 7 4 . 3 . . . Programmer 46 | . . . . . . . . . 2 1 1 . 1 . . . . 1 . . 4 . . 7 12 . 17 . . . Heavy 2 | . . . . . . . . . . . . . . . . . . 2 . . . . . . . . . . . . Behemoth 5 | . . . . . . . . . . . . . 1 . . . . . . . . . 1 1 1 . . 1 . . Armor Guard 2 | . . . . . . . . . . . . . . . . . . . . . . . . . 2 . . . . . Cetus Guard 6 | . . . . . . . . . . . . . . . . 6 . . . . . . . . . . . . . . Lightning 3 | . . . . . . . . . . . . . . . . . . 3 . . . . . . . . . . . . Tracker 3 | . . . . . . . . . . . . . . . . . . . . . . . . . . . 2 1 . . Combat Programmer 2 | . . . . . . . . . . . . . . . . . . . . . . . . . . . 2 . . . Executioner 1 | . . . . . . . . . . . . . . . . . . . . . . . . 1 . . . . . . Zionite 8 | . . . . . 8 . . . . . . . . . . . . . . . . . . . . . . . . . Master Thief 2 | . . . . . . . . . . . 2 . . . . . . . . . . . . . . . . . . . Assembled 2 | . . . . . 2 . . . . . . . . . . . . . . . . . . . . . . . . . Surgeon 1 | . . . . . . . . . . . . . . . . . . . . . . 1 . . . . . . . . Wasp 1 | . . . . . . . . . . . . . . . . . . . . . . 1 . . . . . . . . Thug 1 | . . 1 . . . . . . . . . . . . . . . . . . . . . . . . . . . . Martyr 1 | . . . . . . . . . . . . . . . . . . . . 1 . . . . . . . . . . Best Kill Streak 18 | 4 4 3 7 5 4 5 8 7 6 7 3 . 7 4 2 3 7 10 11 . 5 3 3 18 10 1 5 2 . 6 Combat Bots Only 11 | . 4 3 5 4 2 4 5 3 3 7 3 . 7 3 2 3 2 6 3 . 2 3 3 11 10 1 5 2 . 4 Max Kills in Single Turn 7 | 1 1 2 2 2 2 2 3 2 2 2 2 . 3 4 2 1 1 6 1 1 2 2 1 7 3 1 2 1 . 1 Gunslinging 1 | . . 1 1 . . . 1 . . . 1 . . . . . . . . . . . . . . . 1 . . . Exploded 5 | . . . . 2 1 . 2 . 1 2 2 . 3 3 . . . 1 . . . 1 . 5 3 . . . . . Melee 1 | . . . . . . 1 . . 1 . . . . . . . . . . . . . . . . 1 1 . . 1 Uniques/NPCs Destroyed 6 | . . . . . 4 1 . . . . . . . . . . . . . . . . . . . 1 . . . . 8R-AWN (-9/Exiles) EX-HEX (-9/Exiles) EX-BIN (-9/Exiles) EX-DEC (-9/Exiles) 7V-RTL (-8/Mines) A5 (-4/Lab) Combat | -11 -10 -10 -9 -9 -9 -8 -8 -8 -7 -7 -7 -7 -6 -6 -6 -6 -6 -6 -5 -5 -5 -5 -5 -4 -4 -4 -3 -2 -2 -2 -------- Run | Yrd Mat Min Mat Min Exi Min Mat Sto Fac Low Low Zio Pro Fac Ext Cet Arc Hub Fac Was Fac Upp Upp Fac Arm Lab Res Res Qua Sec Hostile Shots Fired 3559 | . 106 16 63 23 59 128 145 47 54 19 44 . 98 10 27 114 17 127 10 . 69 1 53 465 631 103 807 111 7 205 Missed 1005 | . 36 6 24 8 17 37 40 12 20 8 17 . 30 4 13 26 3 28 2 . 27 . 12 173 162 30 181 25 2 62 Damage Taken 36926 | . 856 228 410 150 791 1513 1430 506 714 237 535 . 923 94 167 2414 318 2105 171 . 905 18 658 3415 4898 767 7200 1881 153 3469 Core 3603 | . 102 51 52 8 74 208 152 . . 23 . . . . 6 170 . 94 . . 41 . 43 223 325 112 547 213 . 1159 Absorbed by Shields 9334 | . . . . . . . . . . . . . . . 5 . . . . . . . . 1495 4124 35 3675 . . . Reduced by Siege Mode 1051 | . . . . . . . 10 . . . 14 . 5 . . 246 17 61 . . . . 51 82 342 . 150 . . 73 Redirected to Shielding 139 | . . . . . . . . . . . . . . . . . . 126 . . . . . . . . . 13 . . Ignored by Resistances 6054 | . . . . . . . . . . . . . . . . . . 187 . . . . . 1103 729 1251 2698 86 . . Regen/Repaired (Parts) 3097 | . 171 . . . . . 264 492 215 . . . . . . . . . . 28 1927 . . . . . . . . . Core Remaining (%) 64 | 100 . 38 . . . 14 . 72 . . . . 96 . . . . 68 . . . . 91 . . 40 57 . . . Volleys Fired 1321 | 14 94 12 44 12 71 62 100 55 44 15 20 . 21 12 17 35 37 104 19 4 24 3 12 90 169 . 161 39 . 31 Largest 4 | 2 2 2 3 3 3 3 3 3 3 3 3 . 3 4 4 4 4 3 1 1 4 3 4 4 4 . 4 3 . 2 Hottest 410 | 40 100 100 181 121 69 97 128 78 75 75 75 . 75 155 245 240 255 298 60 60 190 170 410 323 320 . 230 154 . 60 Shots Fired 3083 | 28 188 23 132 32 163 152 283 161 126 43 49 . 51 28 58 82 108 169 19 4 87 6 40 258 295 . 409 42 . 47 Gun 2637 | 28 188 23 132 30 161 135 207 161 124 42 43 . 45 27 50 82 108 169 19 4 82 3 27 226 103 . 345 26 . 47 Cannon 403 | . . . . . . 17 69 . . . . . . . 8 . . . . . 5 1 13 21 189 . 64 16 . . Launcher 43 | . . . . 2 2 . 7 . 2 1 6 . 6 1 . . . . . . . 2 . 11 3 . . . . . Special . | . . . . . . . . . . . . . . . . . . . . . . . . . . . . . . . Kinetic 2263 | 28 66 . 75 20 161 152 252 161 124 42 43 . 45 23 25 34 63 118 19 4 82 3 25 189 179 . 281 2 . 47 Thermal 659 | . 122 23 57 10 . . 24 . . . . . . 4 33 41 45 51 . . 5 1 15 58 60 . 101 9 . . Explosive 43 | . . . . 2 2 . 7 . 2 1 6 . 6 1 . . . . . . . 2 . 11 3 . . . . . Electromagnetic 118 | . . . . . . . . . . . . . . . . 7 . . . . . . . . 53 . 27 31 . . Robot Hit Streak 83 | 5 7 16 11 4 20 14 13 10 16 19 20 . 17 14 16 83 17 21 14 12 12 10 12 14 17 . 13 11 . 10 Robot Miss Streak 10 | 1 5 1 6 4 3 10 7 3 2 2 5 . 4 2 4 2 1 8 4 2 4 1 1 8 6 . 10 3 . 4 Penetration Max 2 | . . . . . . 1 1 1 . . . . . . . 1 1 1 . . 1 . 1 1 . . 2 . . . Secondary Targets 32 | . 3 1 4 1 . . 3 1 3 1 1 . . . . 2 . 2 . . . . . 2 . . 8 . . . Max Gunslinging Chain 2 | . 1 1 1 1 . . 2 1 1 1 1 . . . . 1 . 1 . . . . . 1 . . 1 . . . Capacitor 25 | . . . . . . . . . . . . . . . . . . . . . . . . . . . . 25 . . Shots Hit Robots 2098 | 9 104 18 83 13 115 170 191 93 82 30 35 . 38 17 38 72 81 131 19 4 61 2 29 157 172 11 253 29 . 41 Core Hits 1399 | 6 51 13 32 10 36 65 167 39 42 21 28 . 62 23 24 41 33 104 25 3 19 22 7 275 114 4 100 13 . 20 Critical Kills 28 | . . . . . 1 4 4 . . . . . 1 . . 2 . 4 . . 2 . 2 5 . . 3 . . . Critical Parts Destroyed 32 | . 1 . . . 4 11 4 . 1 . . . 1 1 . . 1 2 . . 1 . . 1 . . 4 . . . Critical Strikes 125 | . 6 2 6 . 5 23 12 . 1 . . . 2 1 2 8 4 7 . . 3 . 3 7 6 3 19 . . 5 Burn 30 | . 5 2 6 . . . 3 . . . . . . . 2 5 3 . . . . . . . . . 4 . . . Meltdown 2 | . . . . . . . . . . . . . . . . . . . . . . . 2 . . . . . . . Destroy 61 | . 1 . . . 5 15 9 . 1 . . . 2 1 . 3 1 7 . . 3 . . 6 . . 7 . . . Blast 11 | . . . . . . . . . . . . . . . . . . . . . . . . 1 6 . 4 . . . Corrupt 1 | . . . . . . . . . . . . . . . . . . . . . . . . . . . 1 . . . Impale 20 | . . . . . . 8 . . . . . . . . . . . . . . . . 1 . . 3 3 . . 5 Melee Attacks 191 | . . . . . . 99 . . . . . . . . . . . . . . . . 2 1 1 24 47 1 3 13 Impact . | . . . . . . . . . . . . . . . . . . . . . . . . . . . . . . . Slashing . | . . . . . . . . . . . . . . . . . . . . . . . . . . . . . . . Piercing 191 | . . . . . . 99 . . . . . . . . . . . . . . . . 2 1 1 24 47 1 3 13 Sneak Attacks 16 | . . . . . . 10 . . . . . . . . . . . . . . . . . . . . 4 . . 2 Combat Hostiles . | . . . . . . . . . . . . . . . . . . . . . . . . . . . . . . . Follow-up Attacks . | . . . . . . . . . . . . . . . . . . . . . . . . . . . . . . . Damage Inflicted 70139 | 113 1281 270 1570 551 1655 4012 4868 1715 2208 727 1278 . 2323 768 964 1617 1882 6531 1386 237 1753 607 928 10276 7533 805 10194 844 . 1243 Guns 39923 | 112 1281 247 1560 270 1566 1429 2433 1706 1488 525 545 . 647 309 756 1617 1882 5223 1351 237 1566 . 393 3680 1028 . 6867 449 . 756 Cannons 10397 | . . . . . . 198 1096 . . . . . . . 208 . . . . . 160 45 502 681 5159 . 1976 372 . . Explosions 14514 | . . . . 253 89 . 1314 . 676 202 733 . 1676 459 . . . 1219 . . . 562 . 5899 1346 . 86 . . . Melee 4669 | . . . . . . 2357 . . . . . . . . . . . . . . . . 33 . . 560 1263 . . 456 Ramming 636 | 1 . 23 10 28 . 28 25 9 44 . . . . . . . . 89 35 . 27 . . 16 . 245 2 23 . 31 Kinetic 36897 | 112 406 . 617 180 1566 1627 3287 1706 1488 525 545 . 647 218 219 494 1022 4006 1351 237 1566 . 317 3029 4194 . 6737 45 . 756 Thermal 12146 | . 875 247 943 90 . . 242 . 119 . . . . 91 745 979 860 1239 . . 160 45 578 1332 1607 . 1794 200 . . Explosive 13017 | . . . . 253 89 . 1314 . 557 202 733 . 1676 459 . . . . . . . 562 . 5899 1273 . . . . . Electromagnetic 2774 | . . . . . . . . . . . . . . . . 144 . 1197 . . . . . . 459 . 398 576 . . Impact . | . . . . . . . . . . . . . . . . . . . . . . . . . . . . . . . Slashing . | . . . . . . . . . . . . . . . . . . . . . . . . . . . . . . . Piercing 4669 | . . . . . . 2357 . . . . . . . . . . . . . . . . 33 . . 560 1263 . . 456 Highest Corruption 68 | . . . . . 1 1 . . 1 1 2 . . 1 1 1 1 20 . . 1 1 1 8 39 59 68 6 7 8 Average Corruption 6 | . . . . . 1 1 . . 1 1 1 . . 1 1 1 1 7 . . 1 1 1 3 13 45 27 3 6 7 Corruption Purged 3 | . . . . . . . . . . . 2 . . . . . 1 . . . . . . . . . . . . . Corruption Blocked . | . . . . . . . . . . . . . . . . . . . . . . . . . . . . . . . Effects 370 | . . . . . 5 15 . . 17 6 5 . . . 16 1 4 39 . . 5 5 6 11 80 32 108 . 6 9 Message Errors 78 | . . . . . 1 3 . . 3 1 1 . . . 6 . . 8 . . 1 1 4 2 22 8 16 . 1 . Matter Fused 99 | . . . . . 1 4 . . 4 2 2 . . . 4 . 2 10 . . 1 1 . 6 23 6 27 . 2 4 Heat Flow Errors 28 | . . . . . . 3 . . 1 . . . . . 2 . 1 4 . . . 1 . . 4 2 8 . . 2 Energy Discharges 39 | . . . . . 1 1 . . 3 3 1 . . . 2 . . 2 . . 1 . . . 9 6 9 . . 1 Parts Rejected 1 | . . . . . . . . . . . . . . . . . . 1 . . . . . . . . . . . . Parts Fused 4 | . . . . . . . . . 1 . . . . . . . . 1 . . . . . . 1 . . . . 1 Data Loss (minor) 29 | . . . . . 2 2 . . 1 . . . . . . . . 4 . . 1 . . . 4 4 7 . 3 1 Data Loss (major) 15 | . . . . . . . . . 1 . . . . . . 1 . 2 . . 1 1 . . 3 2 4 . . . Misfires 20 | . . . . . . 2 . . . . 1 . . . 1 . 1 1 . . . 1 1 1 6 . 5 . . . Alerts 8 | . . . . . . . . . 3 . . . . . 1 . . . . . . . 1 . . 1 2 . . . Misdirections 9 | . . . . . . . . . . . . . . . . . . . . . . . . . 2 3 4 . . . Weapon Failures 40 | . . . . . . . . . . . . . . . . . . 6 . . . . . 2 6 . 26 . . . Overload Shots 12 | . . . . . . . . . . . . . . . . . . 5 . . . . 1 6 . . . . . . Effects 1 | . . . . . . . . . . . . . . . . . . 1 . . . . . . . . . . . . Heat Surge 1 | . . . . . . . . . . . . . . . . . . 1 . . . . . . . . . . . . Overflow Damage 1089 | . . . . 19 . 215 18 . 16 5 6 . 30 . . . . 64 . . 45 16 50 38 220 19 277 . . 51 Projectiles 508 | . . . . . . . 3 . . . . . . . . . . . . . 43 . 50 38 212 . 162 . . . Explosions 173 | . . . . 19 . . 9 . 16 5 6 . 30 . . . . 64 . . . 16 . . 8 . . . . . Melee 408 | . . . . . . 215 6 . . . . . . . . . . . . . 2 . . . . 19 115 . . 51 Knockbacks 80 | . . . . . . 10 16 . . . . . . . . . . . . . . . . 1 26 2 25 . . . Impact 4 | . . . . . . 1 1 . . . . . . . . . . . . . . . . . . 2 . . . . Kinetic 76 | . . . . . . 9 15 . . . . . . . . . . . . . . . . 1 26 . 25 . . . Secondary . | . . . . . . . . . . . . . . . . . . . . . . . . . . . . . . . Self-Inflicted Damage 1383 | . . . . 25 49 . . . 14 45 265 . 119 9 . . . 203 . . . . . 270 259 117 . 3 . 5 Shots 52 | . . . . 1 1 . . . 1 2 10 . 6 1 . . . 2 . . . . . 18 10 . . . . . Rammed 62 | 1 2 6 1 5 . 2 4 1 1 . . . . . . . . 5 3 . 2 . . 3 . 16 . 2 . 8 Targets Rammed 86 | 1 2 6 1 5 . 2 4 1 3 . . . . . . . . 5 3 . 2 . . 4 . 16 1 3 . 27 Kicked 21 | . . . . . . . . . . . . . . . . . . . . . . . . . . . 1 1 . 19 Crushed 3 | . . . . . . . . . 2 . . . . . . . . . . . . . . 1 . . . . . . Highest Temperature 485 | . 433 198 222 36 136 309 333 208 333 3 12 . . 52 202 376 167 266 57 58 130 184 377 383 485 . 382 332 . 136 Average Temperature 90 | . 83 62 34 15 37 100 115 63 128 3 12 . . 26 40 135 75 43 14 31 37 76 172 96 126 . 168 122 . 34 Received Heat Transfer 6224 | . 480 33 102 . . 495 594 126 342 45 117 . 186 18 78 360 18 315 54 . 48 9 507 1065 522 . 314 216 9 171 Effects 18 | . 2 . . . . 1 1 . . . . . . . . . . . . . . . 4 . 7 . 2 1 . . Shutdowns 1 | . . . . . . . . . . . . . . . . . . . . . . . . . 1 . . . . . Energy Bleed 5 | . . . . . . . 1 . . . . . . . . . . . . . . . 1 . 2 . 1 . . . Interference 8 | . . . . . . 1 . . . . . . . . . . . . . . . . 3 . 3 . 1 . . . Matter Decay 1 | . . . . . . . . . . . . . . . . . . . . . . . . . . . . 1 . . Short Circuit 2 | . 1 . . . . . . . . . . . . . . . . . . . . . . . 1 . . . . . Damage (minor) 1 | . 1 . . . . . . . . . . . . . . . . . . . . . . . . . . . . . Siege Activations 40 | . . . . . . . 2 . . 1 2 . 1 . . 2 2 6 2 . 1 . 2 3 10 . 2 1 . 3 Total Turns 831 | . . . . . . . 32 . . 24 11 . 11 . . 72 71 63 3 . 21 . 25 51 218 . 159 26 . 44 Longest Duration 83 | . . . . . . . 26 . . 24 8 . 11 . . 56 59 14 2 . 21 . 20 24 55 . 83 26 . 24 Robots Corrupted 8 | . . . . . . . 1 . . . . . . . . . . . . . . . . . 3 . 2 2 . . Combat Hostiles 7 | . . . . . . . . . . . . . . . . . . . . . . . . . 3 . 2 2 . . Parts Fried 18 | . . . . . . . 2 . . . . . . . . . . 7 . . . . . . 3 . 3 3 . . Impact Corruptions 2 | . . . . . . . 1 . . . . . . . . . . . . . 1 . . . . . . . . . Robots Melted 7 | . 1 . 1 . . . . . . . . . . . . 1 2 . . . . . 2 . . . . . . . Combat Hostiles 6 | . 1 . 1 . . . . . . . . . . . . 1 1 . . . . . 2 . . . . . . . Parts Melted 35 | . 4 1 1 . . . 1 . . . . . . . 1 6 7 2 . . 1 . 4 1 . . 5 1 . . Heat Transferred 20531 | . 2849 851 2183 148 . . 814 . 150 . . . . 200 1200 2120 1768 1397 . . 111 37 494 1366 1358 . 3300 185 . . Parts Sabotaged . | . . . . . . . . . . . . . . . . . . . . . . . . . . . . . . . Parts Stolen 3 | . . . . . . . . . . . 3 . . . . . . . . . . . . . . . . . . . Parts Stripped . | . . . . . . . . . . . . . . . . . . . . . . . . . . . . . . . Power Chain Reactions 6 | . . . . . . . . . . . . . . . . . . 4 . . . . . . 1 . 1 . . . Alert | -11 -10 -10 -9 -9 -9 -8 -8 -8 -7 -7 -7 -7 -6 -6 -6 -6 -6 -6 -5 -5 -5 -5 -5 -4 -4 -4 -3 -2 -2 -2 ------- Run | Yrd Mat Min Mat Min Exi Min Mat Sto Fac Low Low Zio Pro Fac Ext Cet Arc Hub Fac Was Fac Upp Upp Fac Arm Lab Res Res Qua Sec Peak Influence 1771 | 20 312 204 373 352 . 130 784 697 344 . . . . 209 625 349 240 1405 865 302 938 . . 1267 1771 . 862 825 464 635 Initial 688 | . 13 84 . 145 . . 44 330 129 . . . . 98 28 349 30 . 688 302 211 . . 65 580 . . 474 371 255 Average 349 | 12 156 125 168 190 . 40 433 451 145 . . . . 118 191 232 56 364 702 302 730 . . 437 1122 . 335 647 419 504 Maximum Alert Level 5 | . 1 1 1 1 . . 3 2 1 . . . . 1 2 1 1 4 3 1 3 . . 4 5 . 3 3 2 2 Low Security (%) 41 | 100 57 48 55 58 . 100 5 . 75 . . . . 79 62 15 81 51 . . . . . 24 . . 46 . . . Level 1 22 | . 42 51 44 41 . . 21 42 24 . . . . 20 21 85 18 21 . 100 8 . . 33 . . 8 . 31 14 Level 2 21 | . . . . . . . 70 57 . . . . . . 15 . . . 67 . 12 . . 18 19 . 26 73 68 85 Level 3 10 | . . . . . . . 1 . . . . . . . . . . 23 32 . 79 . . 17 30 . 18 26 . . Level 4 3 | . . . . . . . . . . . . . . . . . . 3 . . . . . 6 40 . . . . . Level 5 . | . . . . . . . . . . . . . . . . . . . . . . . . . 3 . . . . . High Security . | . . . . . . . . . . . . . . . . . . . . . . . . . 6 . . . . . Max Security . | . . . . . . . . . . . . . . . . . . . . . . . . . . . . . . . Squads Dispatched 97 | . 7 . 2 . . . 8 4 8 . . . 1 1 1 . . 6 3 . 7 . . 9 14 . 15 7 1 3 Investigation 22 | . 5 . 2 . . . 4 3 4 . . . . . . . . . . . 1 . . 1 1 . . . . 1 Extermination 21 | . . . . . . . . . 2 . . . . . . . . 1 . . 3 . . 2 5 . 7 1 . . Reinforcement 28 | . 2 . . . . . 2 1 2 . . . . 1 1 . . 4 1 . 3 . . 3 1 . 3 1 1 2 Assault 20 | . . . . . . . 2 . . . . . 1 . . . . 1 2 . . . . 3 7 . 2 2 . . Garrison . | . . . . . . . . . . . . . . . . . . . . . . . . . . . . . . . Intercept 6 | . . . . . . . . . . . . . . . . . . . . . . . . . . . 3 3 . . Searches Triggered . | . . . . . . . . . . . . . . . . . . . . . . . . . . . . . . . Construction Impeded 9 | . . . . . . . . 1 1 . . . . . 1 . . 1 . . 1 . . 1 . . 3 . . . Haulers Reinforced 2 | . . . . . . . . . . . . . . . . . . . . . 2 . . . . . . . . . Active Scanning Responses . | . . . . . . . . . . . . . . . . . . . . . . . . . . . . . . . Cargo Convoy Interrupts 1 | . . . . . . . . . . . . . . . . . . . . . . . . 1 . . . . . . Stealth | -11 -10 -10 -9 -9 -9 -8 -8 -8 -7 -7 -7 -7 -6 -6 -6 -6 -6 -6 -5 -5 -5 -5 -5 -4 -4 -4 -3 -2 -2 -2 --------- Run | Yrd Mat Min Mat Min Exi Min Mat Sto Fac Low Low Zio Pro Fac Ext Cet Arc Hub Fac Was Fac Upp Upp Fac Arm Lab Res Res Qua Sec Distress Signals 30 | . 1 . 1 . . . 6 2 2 . . . . . 1 2 1 1 . . . . . 4 4 . 3 1 . 1 Communications Jammed 540 | . . . . . . . . . . . . . . . 30 38 . 23 15 . 262 . . 5 167 . . . . . Distress Signals 535 | . . . . . . . . . . . . . . . 30 38 . 18 15 . 262 . . 5 167 . . . . . Times Spotted 673 | . 30 7 26 8 16 13 63 24 23 11 10 . 26 6 27 12 17 34 15 . 23 3 6 70 70 1 64 22 6 40 Peak Tracking Total 14 | . 3 3 5 4 9 3 7 3 5 9 3 . 7 4 3 5 1 5 5 . 5 3 3 14 7 1 11 13 2 12 Tactical Retreats 36 | . 1 . 2 . 3 2 . 2 1 1 . . . 1 . . . 5 1 . . . . 3 5 . 1 1 . 7 Traps | -11 -10 -10 -9 -9 -9 -8 -8 -8 -7 -7 -7 -7 -6 -6 -6 -6 -6 -6 -5 -5 -5 -5 -5 -4 -4 -4 -3 -2 -2 -2 ------- Run | Yrd Mat Min Mat Min Exi Min Mat Sto Fac Low Low Zio Pro Fac Ext Cet Arc Hub Fac Was Fac Upp Upp Fac Arm Lab Res Res Qua Sec Traps Triggered 26 | . 2 . . . . . . 3 4 . . . . . . . . 4 1 . . . . 2 3 . 1 2 3 1 Indirectly 2 | . . . . . . . . . . . . . . . . . . 2 . . . . . . . . . . . . Trap Hack Attempts . | . . . . . . . . . . . . . . . . . . . . . . . . . . . . . . . Triggered . | . . . . . . . . . . . . . . . . . . . . . . . . . . . . . . . Disarmed . | . . . . . . . . . . . . . . . . . . . . . . . . . . . . . . . Reprogrammed . | . . . . . . . . . . . . . . . . . . . . . . . . . . . . . . . Reused 1 | . . . . . . . . . 1 . . . . . . . . . . . . . . . . . . . . . Traps Reconfigurated 1 | . . . . . . . . . 1 . . . . . . . . . . . . . . . . . . . . . Traps Extracted . | . . . . . . . . . . . . . . . . . . . . . . . . . . . . . . . Installed . | . . . . . . . . . . . . . . . . . . . . . . . . . . . . . . . Triggered 1 | . . . . . . . . . 1 . . . . . . . . . . . . . . . . . . . . . Machines | -11 -10 -10 -9 -9 -9 -8 -8 -8 -7 -7 -7 -7 -6 -6 -6 -6 -6 -6 -5 -5 -5 -5 -5 -4 -4 -4 -3 -2 -2 -2 ---------- Run | Yrd Mat Min Mat Min Exi Min Mat Sto Fac Low Low Zio Pro Fac Ext Cet Arc Hub Fac Was Fac Upp Upp Fac Arm Lab Res Res Qua Sec Machines Disabled 82 | . . . . 2 8 2 2 4 2 . . . . . 3 . 4 32 . . 1 . . 4 12 2 3 . 1 . Max in Single Turn 14 | . . . . 2 3 2 1 1 2 . . . . . . . 1 14 . . . . . 1 1 1 1 . 1 . Garrison Access 4 | . . . . . . . 1 . 1 . . . . . . . . 1 . . . . . 1 . . . . . . Network Hub 2 | . . . . . . . . . . . . . . . . . . 2 . . . . . . . . . . . . Energy Cycler 1 | . . . . . . . . . . . . . . . . . . . . . . . . . 1 . . . . . Machines Repaired . | . . . . . . . . . . . . . . . . . . . . . . . . . . . . . . . Machines Dismantled 1 | . . . . . . . . . . . . . . . . . . . . . . . . . . 1 . . . . Machines Sabotaged . | . . . . . . . . . . . . . . . . . . . . . . . . . . . . . . . Overloaded Fab Kills . | . . . . . . . . . . . . . . . . . . . . . . . . . . . . . . . Hacking | -11 -10 -10 -9 -9 -9 -8 -8 -8 -7 -7 -7 -7 -6 -6 -6 -6 -6 -6 -5 -5 -5 -5 -5 -4 -4 -4 -3 -2 -2 -2 --------- Run | Yrd Mat Min Mat Min Exi Min Mat Sto Fac Low Low Zio Pro Fac Ext Cet Arc Hub Fac Was Fac Upp Upp Fac Arm Lab Res Res Qua Sec Machines Accessed 62 | . 7 . 8 . 2 . 11 12 7 . . 1 . 1 6 . . . . . 1 1 1 2 1 1 . . . . Terminals 37 | . 4 . 6 . . . 6 11 2 . . . . 1 6 . . . . . . 1 . . . . . . . . Fabricators 4 | . . . . . . . . . 3 . . . . . . . . . . . . . . 1 . . . . . . Repair Stations 6 | . 1 . . . . . 1 1 1 . . . . . . . . . . . 1 . . . 1 . . . . . Recycling Units 5 | . 2 . 2 . . . 1 . . . . . . . . . . . . . . . . . . . . . . . Scanalyzers 2 | . . . . . . . 2 . . . . . . . . . . . . . . . . . . . . . . . Garrison Access 3 | . . . . . . . 1 . 1 . . . . . . . . . . . . . . 1 . . . . . . Total Hacks 165 | . 20 . 21 . 2 . 38 36 18 . . 3 . 1 7 . . . . . 9 1 1 4 3 1 . . . . Successful 95 | . 9 . 12 . 2 . 20 17 11 . . 3 . 1 6 . . . . . 7 1 1 3 1 1 . . . . Failed 70 | . 11 . 9 . . . 18 19 7 . . . . . 1 . . . . . 2 . . 1 2 . . . . . Catastrophic 10 | . 3 . 2 . . . 1 1 3 . . . . . . . . . . . . . . . . . . . . . Database Lockouts . | . . . . . . . . . . . . . . . . . . . . . . . . . . . . . . . Manual 144 | . 14 . 16 . 1 . 20 18 3 . . . . 6 21 . . 15 11 . 4 . . . 7 . 4 2 2 . Terminals 93 | . 12 . 19 . . . 20 31 2 . . . . 1 7 . . . . . . 1 . . . . . . . . Fabricators 13 | . . . . . . . . . 11 . . . . . . . . . . . . . . 2 . . . . . . Repair Stations 28 | . 4 . . . . . 3 5 4 . . . . . . . . . . . 9 . . . 3 . . . . . Recycling Units 7 | . 4 . 2 . . . 1 . . . . . . . . . . . . . . . . . . . . . . . Scanalyzers 12 | . . . . . . . 12 . . . . . . . . . . . . . . . . . . . . . . . Garrison Access 5 | . . . . . . . 2 . 1 . . . . . . . . . . . . . . 2 . . . . . . Terminal Hacks 35 | . 4 . 6 . 2 . . 10 . . . 3 . 1 6 . . . . . . 1 1 . . 1 . . . . Record 2 | . . . . . 1 . . . . . . . . . . . . . . . . 1 . . . . . . . . Part Schematic 5 | . 2 . . . . . . . . . . 3 . . . . . . . . . . . . . . . . . . Robot Analysis 3 | . 2 . 1 . . . . . . . . . . . . . . . . . . . . . . . . . . . Open Door 12 | . . . . . . . . 4 . . . . . 1 6 . . . . . . . 1 . . . . . . . Terminal Index 2 | . . . 1 . . . . 1 . . . . . . . . . . . . . . . . . . . . . . Recycling Unit Index 1 | . . . 1 . . . . . . . . . . . . . . . . . . . . . . . . . . . Alert Level 1 | . . . . . . . . 1 . . . . . . . . . . . . . . . . . . . . . . Unreport Threat 2 | . . . . . . . . 2 . . . . . . . . . . . . . . . . . . . . . . Recall Investigation 1 | . . . 1 . . . . . . . . . . . . . . . . . . . . . . . . . . . Hauler Manifests 2 | . . . 2 . . . . . . . . . . . . . . . . . . . . . . . . . . . Zone Layout 2 | . . . . . . . . 2 . . . . . . . . . . . . . . . . . . . . . . Derelict Proto ID Bank 1 | . . . . . 1 . . . . . . . . . . . . . . . . . . . . . . . . . Release Object 1 | . . . . . . . . . . . . . . . . . . . . . . . . . . 1 . . . . Fabricator Hacks 8 | . . . . . . . . . 6 . . . . . . . . . . . . . . 2 . . . . . . Load Schematic 5 | . . . . . . . . . 4 . . . . . . . . . . . . . . 1 . . . . . . Build 3 | . . . . . . . . . 2 . . . . . . . . . . . . . . 1 . . . . . . Repair Station Hacks 18 | . 4 . . . . . 2 2 3 . . . . . . . . . . . 6 . . . 1 . . . . . Scan Component 10 | . 2 . . . . . 1 1 2 . . . . . . . . . . . 3 . . . 1 . . . . . Repair 8 | . 2 . . . . . 1 1 1 . . . . . . . . . . . 3 . . . . . . . . . Recycling Unit Hacks . | . . . . . . . . . . . . . . . . . . . . . . . . . . . . . . . Scanalyzer 9 | . . . . . . . 9 . . . . . . . . . . . . . . . . . . . . . . . Insert Component 4 | . . . . . . . 4 . . . . . . . . . . . . . . . . . . . . . . . Analyze 5 | . . . . . . . 5 . . . . . . . . . . . . . . . . . . . . . . . Garrison Access Hacks 3 | . . . . . . . 1 . 1 . . . . . . . . . . . . . . 1 . . . . . . Seal Access 3 | . . . . . . . 1 . 1 . . . . . . . . . . . . . . 1 . . . . . . Unauthorized Hacks 22 | . 1 . 6 . . . 8 5 1 . . . . . . . . . . . 1 . . . . . . . . . Terminals 15 | . . . 4 . . . 6 5 . . . . . . . . . . . . . . . . . . . . . . Botnet 10 | . . . 2 . . . 4 4 . . . . . . . . . . . . . . . . . . . . . . Operators 2 | . . . 1 . . . 1 . . . . . . . . . . . . . . . . . . . . . . . Skim 3 | . . . 1 . . . 1 1 . . . . . . . . . . . . . . . . . . . . . . Fabricators 1 | . . . . . . . . . 1 . . . . . . . . . . . . . . . . . . . . . Recompile 1 | . . . . . . . . . 1 . . . . . . . . . . . . . . . . . . . . . Repair Stations 2 | . . . . . . . 1 . . . . . . . . . . . . . 1 . . . . . . . . . Patch 2 | . . . . . . . 1 . . . . . . . . . . . . . 1 . . . . . . . . . Recycling Units 4 | . 1 . 2 . . . 1 . . . . . . . . . . . . . . . . . . . . . . . Tunnel 4 | . 1 . 2 . . . 1 . . . . . . . . . . . . . . . . . . . . . . . Scanalyzers . | . . . . . . . . . . . . . . . . . . . . . . . . . . . . . . . Garrison Access . | . . . . . . . . . . . . . . . . . . . . . . . . . . . . . . . Data Cores Recovered 2 | . . . . . . . . 1 . . . . . . . . . . 1 . . . . . . . . . . . Used . | . . . . . . . . . . . . . . . . . . . . . . . . . . . . . . . Hacking Detections 41 | . 6 . 4 . . . 10 9 6 . . . . 1 2 . . . . . 1 . . 1 1 . . . . . Full Trace Events 13 | . 4 . . . . . 3 2 3 . . . . . . . . . . . . . . 1 . . . . . . Feedback Events 1 | . . . . . . . . . 1 . . . . . . . . . . . . . . . . . . . . . Corruption 1 | . . . . . . . . . 1 . . . . . . . . . . . . . . . . . . . . . Feedback Blocked . | . . . . . . . . . . . . . . . . . . . . . . . . . . . . . . . Robot Schematics Acquired 3 | . . . . . . . . . . . . 3 . . . . . . . . . . . . . . . . . . Robots Built . | . . . . . . . . . . . . . . . . . . . . . . . . . . . . . . . Authchips . | . . . . . . . . . . . . . . . . . . . . . . . . . . . . . . . Time . | . . . . . . . . . . . . . . . . . . . . . . . . . . . . . . . Total Robot Build Rating . | . . . . . . . . . . . . . . . . . . . . . . . . . . . . . . . Part Schematics Acquired 32 | . 2 . . . . . 4 . . . . 18 . . . . . 8 . . . . . . . . . . . . Parts Built 3 | . . . . . . . . . 2 . . . . . . . . . . . . . . 1 . . . . . . Authchips 1 | . . . . . . . . . 1 . . . . . . . . . . . . . . . . . . . . . Time 192 | . . . . . . . . . 128 . . . . . . . . . . . . . . 64 . . . . . . Total Part Build Rating 24 | . . . . . . . . . 16 . . . . . . . . . . . . . . 8 . . . . . . Parts Repaired 8 | . 2 . . . . . 1 1 1 . . . . . . . . . . . 3 . . . . . . . . . Time 466 | . 52 . . . . . 34 68 68 . . . . . . . . . . . 244 . . . . . . . . . Parts Recycled . | . . . . . . . . . . . . . . . . . . . . . . . . . . . . . . . Recycled Matter . | . . . . . . . . . . . . . . . . . . . . . . . . . . . . . . . Retrieved Matter . | . . . . . . . . . . . . . . . . . . . . . . . . . . . . . . . Retrieved Components . | . . . . . . . . . . . . . . . . . . . . . . . . . . . . . . . Parts Scanalyzed 4 | . . . . . . . 4 . . . . . . . . . . . . . . . . . . . . . . . Part Schematics Acquired 4 | . . . . . . . 4 . . . . . . . . . . . . . . . . . . . . . . . Parts Damaged . | . . . . . . . . . . . . . . . . . . . . . . . . . . . . . . . Bothacking | -11 -10 -10 -9 -9 -9 -8 -8 -8 -7 -7 -7 -7 -6 -6 -6 -6 -6 -6 -5 -5 -5 -5 -5 -4 -4 -4 -3 -2 -2 -2 ------------ Run | Yrd Mat Min Mat Min Exi Min Mat Sto Fac Low Low Zio Pro Fac Ext Cet Arc Hub Fac Was Fac Upp Upp Fac Arm Lab Res Res Qua Sec Used RIF Installer . | . . . . . . . . . . . . . . . . . . . . . . . . . . . . . . . Robots Hacked . | . . . . . . . . . . . . . . . . . . . . . . . . . . . . . . . Non-combat . | . . . . . . . . . . . . . . . . . . . . . . . . . . . . . . . Combat . | . . . . . . . . . . . . . . . . . . . . . . . . . . . . . . . Robot Hacks Applied . | . . . . . . . . . . . . . . . . . . . . . . . . . . . . . . . Relay Couplers Released 1 | . . . . . . . . . . . . . . . . . . 1 . . . . . . . . . . . . Machine Destruction 1 | . . . . . . . . . . . . . . . . . . 1 . . . . . . . . . . . . Fabnet Peak Effective % . | . . . . . . . . . . . . . . . . . . . . . . . . . . . . . . . Robots Rewired 21 | . . . . . . . . . . . . . 2 . 19 . . . . . . . . . . . . . . . Allies Hacked 6 | . . . . . . . . . . . . . 1 . . . . . . . 5 . . . . . . . . . Hacks Repelled . | . . . . . . . . . . . . . . . . . . . . . . . . . . . . . . . Allies | -11 -10 -10 -9 -9 -9 -8 -8 -8 -7 -7 -7 -7 -6 -6 -6 -6 -6 -6 -5 -5 -5 -5 -5 -4 -4 -4 -3 -2 -2 -2 -------- Run | Yrd Mat Min Mat Min Exi Min Mat Sto Fac Low Low Zio Pro Fac Ext Cet Arc Hub Fac Was Fac Upp Upp Fac Arm Lab Res Res Qua Sec Total Allies 77 | . . 1 . . . . . . 3 . . 4 2 . 32 . . 5 2 20 . . . . 5 . 2 1 . . Largest Group 21 | . . 1 . . . . . . 3 . . 4 4 . 17 13 2 5 2 21 15 3 . . 3 . 2 1 . . Highest-Rated Group 784 | . . 31 . . . . . . 93 . . 152 152 . 620 390 46 216 170 784 584 71 . . 243 . 206 127 . . Highest-Rated Ally 159 | . . 31 . . . . . . 31 . . 40 40 . 159 39 23 85 85 85 85 25 . . 81 . 103 127 . . Zionite Dispatches 10 | . . . . . . . . . . . . . . . 3 . . 1 1 . . . . . 3 . 1 1 . . Heavy 3 | . . . . . . . . . . . . . . . . . . 1 1 . . . . . . . 1 . . . Light 1 | . . . . . . . . . . . . . . . 1 . . . . . . . . . . . . . . . Hacker 1 | . . . . . . . . . . . . . . . . . . . . . . . . . 1 . . . . . Hero 1 | . . . . . . . . . . . . . . . . . . . . . . . . . . . . 1 . . Thermal Resupply 1 | . . . . . . . . . . . . . . . 1 . . . . . . . . . . . . . . . Kinetic Resupply 1 | . . . . . . . . . . . . . . . . . . . . . . . . . 1 . . . . . Offense Resupply 1 | . . . . . . . . . . . . . . . . . . . . . . . . . 1 . . . . . Infowar Resupply 1 | . . . . . . . . . . . . . . . 1 . . . . . . . . . . . . . . . Total Orders 12 | . . . . . . . . . . . . . . 6 2 . . . . . . . . . 4 . . . . . ROAM 1 | . . . . . . . . . . . . . . 1 . . . . . . . . . . . . . . . . DROP 4 | . . . . . . . . . . . . . . . 2 . . . . . . . . . 2 . . . . . EXPLORE 2 | . . . . . . . . . . . . . . 2 . . . . . . . . . . . . . . . . RETURN 5 | . . . . . . . . . . . . . . 3 . . . . . . . . . . 2 . . . . . Ally Attacks 606 | . . . . . . . . . 82 . . . 43 . 226 27 . 4 13 . 147 3 . . 27 . 24 10 . . Total Damage 14556 | . . . . . . . . . 1160 . . . 692 . 4180 468 . 253 987 . 3753 52 . . 590 . 1758 663 . . Kills 93 | . . . . . . . . . 10 . . . 8 . 28 2 . 2 5 . 19 . . . 6 . 7 6 . . Allies Corrupted 9 | . . . . . . . . . . . . . . . . . . 7 1 . 1 . . . . . . . . . Allies Melted 2 | . . . . . . . . . . . . . . . 2 . . . . . . . . . . . . . . . Intel | -11 -10 -10 -9 -9 -9 -8 -8 -8 -7 -7 -7 -7 -6 -6 -6 -6 -6 -6 -5 -5 -5 -5 -5 -4 -4 -4 -3 -2 -2 -2 ------- Run | Yrd Mat Min Mat Min Exi Min Mat Sto Fac Low Low Zio Pro Fac Ext Cet Arc Hub Fac Was Fac Upp Upp Fac Arm Lab Res Res Qua Sec Robot Analysis Total 3 | . 2 . 1 . . . . . . . . . . . . . . . . . . . . . . . . . . . Derelict Logs Recovered 12 | . . 2 . 3 . . . . . 1 . 1 2 . . . . . . . . 1 2 . . . . . . . Drone Launches 5 | . . . . . . . . . . . . . . 3 . . . . . . . . . . 2 . . . . . Drone Recoveries 5 | . . . . . . . . . . . . . . 3 . . . . . . . . . . 2 . . . . . Zionite Intel Received 8 | . . . . . . . . . . . . . . 1 3 . . 2 2 . . . . . . . . . . . Main Access 1 | . . . . . . . . . . . . . . . . . . . 1 . . . . . . . . . . . Component Stockpiles 1 | . . . . . . . . . . . . . . . 1 . . . . . . . . . . . . . . . Prototype Stockpiles 1 | . . . . . . . . . . . . . . . 1 . . . . . . . . . . . . . . . Prototype Schematics 1 | . . . . . . . . . . . . . . . . . . 1 . . . . . . . . . . . . Trap Installations 1 | . . . . . . . . . . . . . . 1 . . . . . . . . . . . . . . . . Active Terminals 2 | . . . . . . . . . . . . . . . . . . 1 1 . . . . . . . . . . . Depthwide Sectors/0 1 | . . . . . . . . . . . . . . . 1 . . . . . . . . . . . . . . . Exploration | -11 -10 -10 -9 -9 -9 -8 -8 -8 -7 -7 -7 -7 -6 -6 -6 -6 -6 -6 -5 -5 -5 -5 -5 -4 -4 -4 -3 -2 -2 -2 ------------- Run | Yrd Mat Min Mat Min Exi Min Mat Sto Fac Low Low Zio Pro Fac Ext Cet Arc Hub Fac Was Fac Upp Upp Fac Arm Lab Res Res Qua Sec Turns Passed 40016 | 206 1252 581 1007 948 2504 2267 3061 1718 3053 1150 873 2543 2028 458 1459 460 1665 1019 730 334 1147 532 1049 1256 1999 1300 2284 573 203 357 Spaces Moved 15869 | 108 536 356 494 554 1153 1202 1122 611 783 436 306 1014 660 195 645 155 136 436 299 198 597 314 533 369 539 457 725 326 363 247 Core 771 | 20 . 56 29 . . 110 . . . . . . . . . . . . . . . . . . . . . 22 363 171 Treads 13934 | 88 536 300 465 554 1153 833 1122 611 783 436 306 1014 660 195 645 155 136 436 299 198 597 314 533 369 539 457 141 58 . 1 Legs 965 | . . . . . . 259 . . . . . . . . . . . . . . . . . . . . 385 246 . 75 Wheels . | . . . . . . . . . . . . . . . . . . . . . . . . . . . . . . . Hover 199 | . . . . . . . . . . . . . . . . . . . . . . . . . . . 199 . . . Flight . | . . . . . . . . . . . . . . . . . . . . . . . . . . . . . . . Fastest Speed 50 | 50 160 50 50 160 160 50 165 250 250 250 250 250 245 170 170 165 165 165 165 165 165 165 165 165 240 160 103 50 50 50 Average Speed 193 | 139 160 142 154 160 179 149 234 250 250 250 250 250 245 184 170 170 165 165 219 165 165 165 181 239 245 245 194 117 50 72 Slowest Speed 470 | 160 160 160 250 160 240 165 250 250 250 250 250 250 250 250 170 250 165 165 330 240 165 165 245 320 250 320 470 180 50 350 Overloaded Moves . | . . . . . . . . . . . . . . . . . . . . . . . . . . . . . . . Propulsion Burnouts . | . . . . . . . . . . . . . . . . . . . . . . . . . . . . . . . Robots Hopped 1 | . . . . . . . . . . . . 1 . . . . . . . . . . . . . . . . . . Cave-ins Triggered . | . . . . . . . . . . . . . . . . . . . . . . . . . . . . . . . Teleports 2 | . . . . . . . . . . . . . . . . . . . . . . . . . . 1 . . . 1 Exploration Rate (%) 53 | 5 93 61 54 86 88 86 70 83 16 71 49 89 79 7 85 56 73 38 9 85 13 56 38 11 49 99 23 7 49 15 Regions Visited 30 Branch Regions 19 Pre-discovered Areas 19 | . 1 1 2 . 1 . 1 . . 1 . 1 . . 10 . . . . . . . 1 . . . . . . . Known Exits Taken 6 | . . . 1 . . . 1 . 1 . . . . 1 . . . . . . . . 1 . . . . . 1 . Unknown Exits Taken 22 | 1 1 1 . 1 1 1 . 1 . 1 1 1 1 . 1 1 1 1 . . 1 1 . 1 1 1 1 1 . . Scrap Searched 28 | . . 1 . 1 . 1 . . . 2 12 4 3 . . . . . . . . 1 3 . . . . . . . Spaces Dug 267 | . . . . . . . . . . . 28 . 25 . . 1 . 169 . . . 33 . 1 5 . 4 . 1 . Terrain Destroyed 1229 | . . . . 10 21 35 34 2 15 31 122 . 107 20 3 1 2 351 2 . 5 52 12 205 95 . 99 4 1 . Melee 3 | . . . . . . . . . . . . . . . . . . . . . . . . . . . 2 . 1 . Projectile 282 | . . . . 2 4 14 2 2 . . . . . . 3 1 2 17 2 . 5 1 12 75 49 . 87 4 . . AOE 938 | . . . . 8 14 19 32 . 15 31 122 . 107 20 . . . 334 . . . 51 . 130 46 . 9 . . . Terrain Rammed 3 | . . . . . . . . . . . . . . . . . . . . . . . . . . 3 . . . . Walls Destroyed . | . . . . . . . . . . . . . . . . . . . . . . . . . . . . . . . Machines Disabled 1 | . . . . . . . . . . . . . . . . . . . . . . . . . . 1 . . . . Actions | -11 -10 -10 -9 -9 -9 -8 -8 -8 -7 -7 -7 -7 -6 -6 -6 -6 -6 -6 -5 -5 -5 -5 -5 -4 -4 -4 -3 -2 -2 -2 --------- Run | Yrd Mat Min Mat Min Exi Min Mat Sto Fac Low Low Zio Pro Fac Ext Cet Arc Hub Fac Was Fac Upp Upp Fac Arm Lab Res Res Qua Sec Total 22903 | 137 747 404 640 589 1470 1441 1402 766 1836 479 387 1023 1040 280 977 294 1517 655 375 206 746 322 593 599 974 571 1203 500 377 353 Wait 4184 | . 87 15 49 13 151 20 100 74 975 27 51 5 339 51 125 74 1331 71 23 1 105 2 22 47 151 22 146 88 . 19 Move 15838 | 107 535 355 493 553 1152 1201 1121 610 782 435 305 1011 659 194 644 154 135 435 299 197 596 313 532 368 538 456 724 325 362 247 Hop 1 | . . . . . . . . . . . . 1 . . . . . . . . . . . . . . . . . . Pick Up 292 | 8 12 5 19 1 43 18 22 8 8 . 2 3 . 7 5 8 3 11 8 1 4 . 8 15 27 16 22 3 2 3 Fast Attach 166 | 1 3 1 8 1 5 15 7 3 5 . 3 . 1 2 6 2 4 8 4 1 7 . 2 12 18 2 14 19 6 6 Attach 142 | 6 4 . 7 . 5 4 11 3 4 . . . 1 5 2 6 2 1 5 . 1 . 4 17 13 8 30 . 2 1 Detach 50 | . 1 . 3 . 1 . 1 . . . . . . 2 . 2 . 4 1 . . . 1 10 7 1 14 1 1 . Swap 125 | . 3 3 4 2 8 5 17 1 5 2 3 1 6 2 2 6 . 2 2 . 2 4 1 16 19 1 7 1 . . Drop 317 | . 6 7 12 2 34 15 19 11 10 . 3 2 1 5 11 7 5 14 11 2 5 . 9 19 31 12 37 20 1 6 Fire 1321 | 14 94 12 44 12 71 62 100 55 44 15 20 . 21 12 17 35 37 104 19 4 24 3 12 90 169 . 161 39 . 31 Melee 191 | . . . . . . 99 . . . . . . . . . . . . . . . . 2 1 1 24 47 1 3 13 Ram 13 | . . . . . . . . . . . . . . . . . . . . . . . . . . 3 . 2 . 8 Kick 21 | . . . . . . . . . . . . . . . . . . . . . . . . . . . 1 1 . 19 Crush 55 | 1 2 6 1 5 . 2 4 1 3 . . . . . . . . 5 3 . 2 . . 4 . 16 . . . . Escape Stasis 1 | . . . . . . . . . . . . . . . 1 . . . . . . . . . . . . . . . Rewire 176 | . . . . . . . . . . . . . 12 . 164 . . . . . . . . . . . . . . . Trap . | . . . . . . . . . . . . . . . . . . . . . . . . . . . . . . . Miscellaneous 10 | . . . . . . . . . . . . . . . . . . . . . . . . . . 10 . . . . Route ------- -11/Scrapyard -10/Materials (discovered 3 exits: *Mat x2 / [*Min]) -10/Mines (discovered 2 exits: *Mat / [*Sub]) -9/Materials (discovered 2 exits: *Min x2) -9/Mines (discovered 4 exits: *Mat x2 / *Exi / *Zio) -9/Exiles -8/Mines -8/Materials (discovered 4 exits: *Fac x2 / *Sto x2) -8/Storage -7/Factory -7/Lower Caves -7/Lower Caves (discovered 2 exits: *Fac / *Zio) -7/Zion -6/Proximity Caves -6/Factory (discovered 2 exits: *Ext x2) -6/Extension (discovered 2 exits: *Fac / *Cet) -6/Cetus (discovered 2 exits: *Fac / [*Arc]) -6/Archives (discovered 2 exits: *Fac / *Hub) -6/Hub_04(d) (discovered 2 exits: *Fac x2) -5/Factory (discovered 4 exits: Fac x4) -5/Waste -5/Factory (discovered 2 exits: *Fac / *Upp) -5/Upper Caves -5/Upper Caves -4/Factory -4/Armory (discovered 3 exits: Res x2 / *Lab) -4/Lab -3/Research -2/Research (discovered 2 exits: [*Acc] / *Qua) -2/Quarantine -2/Section 7 History --------- Turn | Location | Event 13 | -11/Scrapyard | Discovered new exit (range 14) 207 | -11/Scrapyard | Entered Materials 273 | -10/Materials | Discovered new exit (range 15) 303 | -10/Materials | Build established: Mutant 862 | -10/Materials | Discovered new exit (range 10) 939 | -10/Materials | Repaired Lgt. Treads 966 | -10/Materials | Repaired Lgt. Treads 1209 | -10/Materials | Discovered new exit (range 13) 1459 | -10/Materials | Entered Mines 1583 | -10/Mines | Discovered new exit (range 4) 1721 | -10/Mines | Learned location of 1 exit from Materials 1750 | -10/Mines | Learned location of Zion (-7) 1793 | -10/Mines | Received a Mining Laser from a helpful Derelict 1828 | -10/Mines | Build established: Scavenger-Mutant 1860 | -10/Mines | Discovered new exit (range 11) 1999 | -10/Mines | Assembled infested the area 2004 | -10/Mines | Assisted by a Guerilla fighting off Assembled 2014 | -10/Mines | Core integrity fell below 50% 2040 | -10/Mines | Entered Materials 2040 | -9/Materials | Evolved 2 slots: Propulsion x1, Weapon x1 2041 | -9/Materials | Identified exit to Mines 2538 | -9/Materials | Build established: Scavenger-Gunner 2688 | -9/Materials | Discovered exit to Mines (range 12) 3047 | -9/Materials | Entered Mines 3115 | -9/Mines | Deemed a non-threat by the Exiles lab entrance 3115 | -9/Mines | Discovered new exit (range 5) 3371 | -9/Mines | Received a Rocket Launcher from a helpful Derelict 3560 | -9/Mines | Discovered new exit (range 12) 3602 | -9/Mines | Learned Materials trap positions 3608 | -9/Mines | A Derelict revealed a hidden shortcut to a safe place 3632 | -9/Mines | Learned Materials terminal intel 3698 | -9/Mines | Joined a pair of Derelicts in attacking an 0b10 outpost 3769 | -9/Mines | Discovered new exit (range 3) 3995 | -9/Mines | Entered Exiles 4035 | -9/Exiles | Met 8R-AWN 4061 | -9/Exiles | Met EX-HEX 4135 | -9/Exiles | Met EX-DEC 4551 | -9/Exiles | Met EX-BIN 4629 | -9/Exiles | Discovered new exit (range 10) 4777 | -9/Exiles | Aligned with FarCom system 4779 | -9/Exiles | Given EX-Vault access code 4815 | -9/Exiles | Opened EX-Vault 4827 | -9/Exiles | Found XL Autogun Array 4831 | -9/Exiles | Found Modified TNC 4837 | -9/Exiles | Found Trap Reconfigurator 4870 | -9/Exiles | Warned to stay clear of 0b10 Research branches 5038 | -9/Exiles | Attacked by the Exiles 5203 | -9/Exiles | Destroyed 8R-AWN 5218 | -9/Exiles | Found Prototype Ballistic Gun 5218 | -9/Exiles | Identified 8R-AWN's Boregun 5230 | -9/Exiles | Lost 6 parts (1p3n2w) 5572 | -9/Exiles | Destroyed EX-HEX 5723 | -9/Exiles | Destroyed EX-BIN 5825 | -9/Exiles | Destroyed EX-DEC 5873 | -9/Exiles | Found Prototype Processor 6259 | -9/Exiles | Identified Exp. Core Analyzer 6298 | -9/Exiles | Found Prototype Device 6307 | -9/Exiles | Identified AS-neutralizer No. 17b 6319 | -9/Exiles | Found Prototype Processor 6326 | -9/Exiles | Identified Exp. Targeting Computer 6342 | -9/Exiles | Found Prototype Protection 6344 | -9/Exiles | Identified 8R-AWN's Armor/EX 6499 | -9/Exiles | Stole three prototypes: Modified TNC, Trap Reconfigurator, XL Autogun Array 6499 | -9/Exiles | Entered Mines 6500 | -8/Mines | 7V-RTL came to Exiles' defense 6804 | -8/Mines | Destroyed 7V-RTL 6827 | -8/Mines | Build established: Scavenger-Mutant 6864 | -8/Mines | Core integrity fell below 50% 6971 | -8/Mines | Lost 3 parts (1p1n1w) 7086 | -8/Mines | Core integrity fell below 20% 7213 | -8/Mines | Found Adv. Powered Armor 8009 | -8/Mines | Found Prototype Device 8009 | -8/Mines | Identified 7V-RTL's Ultimate Field 8235 | -8/Mines | Discovered new exit (range 9) 8468 | -8/Mines | Build established: Scavenger-Tank 8766 | -8/Mines | Entered Materials 8766 | -8/Materials | Evolved 2 slots: Utility x2 8767 | -8/Materials | Identified exit to Storage 8768 | -8/Materials | Loaded intel: 13 trap records 8769 | -8/Materials | Loaded intel: 12 terminal locations 9311 | -8/Materials | Build established: Scavenger-Gunner 9511 | -8/Materials | Discovered exit to Storage (range 16) 9778 | -8/Materials | Discovered new exit (range 16) 10302 | -8/Materials | Discovered new exit (range 16) 11166 | -8/Materials | First assault squad dispatched 11595 | -8/Materials | Repaired Adv. Powered Armor 11827 | -8/Materials | Entered Storage 12462 | -8/Storage | Repaired Arm. Heavy Treads? 12781 | -8/Storage | Discovered new exit (range 16) 13545 | -8/Storage | Entered Factory 13545 | -7/Factory | Evolved 2 slots: Utility x2 13926 | -7/Factory | Allied Derelicts emerged from ambush trap array 13936 | -7/Factory | Discovered new exit (range 16) 14139 | -7/Factory | Build established: Scavenger-Tank 14648 | -7/Factory | Fabricated Arm. Heavy Treads? 14755 | -7/Factory | Fabricated Arm. Heavy Treads (x1) 14906 | -7/Factory | Identified exit to Lower Caves 15167 | -7/Factory | Repaired Adv. Powered Armor? 15520 | -7/Factory | Found Prototype Launcher 15520 | -7/Factory | Identified Rocket Array 15537 | -7/Factory | Found Rocket Array 16598 | -7/Factory | Entered Lower Caves 17391 | -7/Lower Caves | Attracted the attention of an 0b10 outpost 17433 | -7/Lower Caves | Destroyed 7 combat bots 17708 | -7/Lower Caves | Discovered new exit (range 5) 17748 | -7/Lower Caves | Entered another Lower Caves area 17751 | -7/Lower Caves | Discovered new exit (range 5) 18129 | -7/Lower Caves | Attracted the attention of an 0b10 checkpoint 18555 | -7/Lower Caves | Spotted FB-H4V(f) 18556 | -7/Lower Caves | Encountered a Master Thief 18556 | -7/Lower Caves | Spotted 5D-424(f) 18557 | -7/Lower Caves | Encountered a Master Thief 18557 | -7/Lower Caves | XL Autogun Array stolen by Master Thief 18559 | -7/Lower Caves | Destroyed FB-H4V(f) 18559 | -7/Lower Caves | Discovered new exit (range 13) 18560 | -7/Lower Caves | Trap Reconfigurator stolen by Master Thief 18563 | -7/Lower Caves | Spotted NV-RED(f) 18564 | -7/Lower Caves | Encountered a Master Thief 18565 | -7/Lower Caves | Destroyed 5D-424(f) 18566 | -7/Lower Caves | Modified TNC stolen by Master Thief 18621 | -7/Lower Caves | Entered Zion 18704 | -7/Zion | Found CR-A16's Pointy Stick 18755 | -7/Zion | Discovered new exit (range 12) 19016 | -7/Zion | Given A8's code to call for help 19326 | -7/Zion | Given the Hacking Drone Bay 19382 | -7/Zion | Found Prototype Device 19518 | -7/Zion | Acquired unknown access codes intercepted by a Zionite 19671 | -7/Zion | Learned 8 Factory zone layouts 19823 | -7/Zion | Learned location of Warlord (-5) 20381 | -7/Zion | Met Imprinter 20423 | -7/Zion | Imprinted 20426 | -7/Zion | Declared Zion's savior 21164 | -7/Zion | Entered Proximity Caves 21164 | -6/Proximity Caves | Accompanied by 4 allies 21350 | -6/Proximity Caves | Received a Behemoth hack from an annoying Tinkerer 21502 | -6/Proximity Caves | Spotted B-75 Beast 21520 | -6/Proximity Caves | Destroyed B-75 Beast 22219 | -6/Proximity Caves | Attracted the attention of an 0b10 outpost 22796 | -6/Proximity Caves | Learned 4 Factory zone layouts 22984 | -6/Proximity Caves | Lost 4 allies 23035 | -6/Proximity Caves | Attracted the attention of an 0b10 checkpoint 23074 | -6/Proximity Caves | Destroyed 7 combat bots 23172 | -6/Proximity Caves | Discovered new exit (range 7) 23192 | -6/Proximity Caves | Entered Factory 23192 | -6/Factory | Evolved 2 slots: Propulsion x1, Weapon x1 23193 | -6/Factory | Identified exit to Extension 23198 | -6/Factory | Identified Hacking Drone Bay 23337 | -6/Factory | Build established: Scavenger-Gunner 23416 | -6/Factory | Retrieved Zion intel report: Trap Installations 23543 | -6/Factory | Discovered exit to Extension (range 6) 23650 | -6/Factory | Entered Extension 23715 | -6/Extension | Rescued a captive Derelict 23739 | -6/Extension | Zion Thermal Resupply teleported in 23779 | -6/Extension | Rescued a captive Derelict 23779 | -6/Extension | Rescued a captive Derelict 23859 | -6/Extension | Zion Light squad teleported in 23901 | -6/Extension | Rescued a captive Derelict 23902 | -6/Extension | Rescued a captive Derelict 23963 | -6/Extension | Rescued A7 23988 | -6/Extension | Rescued a captive Derelict 24118 | -6/Extension | Zion Infowar Resupply teleported in 24226 | -6/Extension | Found Prototype Protection 24418 | -6/Extension | Spotted B-75 Beast 24432 | -6/Extension | Allies destroyed B-75 Beast 24441 | -6/Extension | Spotted B-75 Beast 24457 | -6/Extension | Identified Zio. Weapon Casing 24464 | -6/Extension | Extracted ID and sensor layout for unrecognized location from A7's data core 24467 | -6/Extension | Allies destroyed B-75 Beast 24494 | -6/Extension | Lost 5 allies 24505 | -6/Extension | Build established: Commander-Gunner 24689 | -6/Extension | Retrieved Zion intel report: Depthwide Sectors/-6 24904 | -6/Extension | Lost 8 allies 24917 | -6/Extension | Retrieved Zion intel report: Component Stockpiles 24924 | -6/Extension | Retrieved Zion intel report: Prototype Stockpiles 24988 | -6/Extension | Rescued a captive Derelict 25027 | -6/Extension | Discovered new exit (range 10) 25029 | -6/Extension | Discovered new exit (range 6) 25072 | -6/Extension | Terminal network hard line cut 25109 | -6/Extension | Entered Cetus 25109 | -6/Cetus | Accompanied by 13 allies 25137 | -6/Cetus | Spotted Cetus Guard 25137 | -6/Cetus | Spotted Cetus Guard 25144 | -6/Cetus | Spotted Cetus Guard 25144 | -6/Cetus | Spotted Cetus Guard 25153 | -6/Cetus | Allies destroyed Cetus Guard 25162 | -6/Cetus | Allies destroyed Cetus Guard 25172 | -6/Cetus | Destroyed Cetus Guard 25178 | -6/Cetus | Destroyed Cetus Guard 25194 | -6/Cetus | Lost 11 allies 25292 | -6/Cetus | Discovered new exit (range 15) 25333 | -6/Cetus | Spotted Cetus Guard 25334 | -6/Cetus | Spotted Cetus Guard 25353 | -6/Cetus | Spotted Cetus Guard 25353 | -6/Cetus | Spotted Cetus Guard 25367 | -6/Cetus | Destroyed Cetus Guard 25394 | -6/Cetus | Destroyed Cetus Guard 25402 | -6/Cetus | Destroyed Cetus Guard 25413 | -6/Cetus | Destroyed Cetus Guard 25434 | -6/Cetus | Lost 5 parts (1n1u3w) 25455 | -6/Cetus | Discovered new exit (range 15) 25463 | -6/Cetus | Scared off Revision 17 25504 | -6/Cetus | Build established: Scavenger-Tank 25569 | -6/Cetus | Entered Archives 25569 | -6/Archives | Accompanied by 2 allies 25759 | -6/Archives | Discovered new exit (range 14) 25925 | -6/Archives | Discovered new exit (range 13) 26022 | -6/Archives | Build established: Scavenger-Gunner 27234 | -6/Archives | Entered Hub_04(d) 27234 | -6/Hub_04(d) | Accompanied by 2 allies 27258 | -6/Hub_04(d) | Retrieved Zion intel report: Active Terminals 27259 | -6/Hub_04(d) | Zion Heavy squad teleported in 27344 | -6/Hub_04(d) | Found Zio. Weapon Casing 27443 | -6/Hub_04(d) | Lost 5 allies 27524 | -6/Hub_04(d) | Retrieved Zion intel report: Prototype Schematics 27547 | -6/Hub_04(d) | Discovered new exit (range 4) 27668 | -6/Hub_04(d) | Discovered new exit (range 16) 27975 | -6/Hub_04(d) | Network Hub disabled 28010 | -6/Hub_04(d) | Spotted Lightning 28012 | -6/Hub_04(d) | Spotted Lightning 28026 | -6/Hub_04(d) | Spotted Lightning 28037 | -6/Hub_04(d) | System corruption reached 10% 28037 | -6/Hub_04(d) | Destroyed Lightning 28043 | -6/Hub_04(d) | Destroyed Lightning 28064 | -6/Hub_04(d) | Found Prototype Device 28064 | -6/Hub_04(d) | Identified Exp. EM Disruption Field 28067 | -6/Hub_04(d) | Found Prototype Device 28067 | -6/Hub_04(d) | Identified Exp. Phase Shifter 28151 | -6/Hub_04(d) | Destroyed Lightning 28186 | -6/Hub_04(d) | Found Exp. EM Disruption Field 28214 | -6/Hub_04(d) | Network Hub disabled 28253 | -6/Hub_04(d) | Entered Factory 28253 | -5/Factory | Evolved 2 slots: Power x1, Utility x1 28299 | -5/Factory | Retrieved Zion intel report: Active Terminals 28853 | -5/Factory | First assault squad dispatched 28905 | -5/Factory | Retrieved Zion intel report: Main Access 28905 | -5/Factory | Identified exit to Factory 28906 | -5/Factory | Zion Heavy squad teleported in 28983 | -5/Factory | Sucked down chute 28983 | -5/Factory | Entered Waste 28984 | -5/Waste | Joined by Warlord forces that had cleared the area 29003 | -5/Waste | 1 allies followed down the chute 29031 | -5/Waste | Found Adv. Powered Armor 29222 | -5/Waste | Discovered new exit (range 15) 29317 | -5/Waste | Entered Factory 29317 | -5/Factory | Accompanied by 15 allies 29585 | -5/Factory | Discovered new exit (range 9) 29670 | -5/Factory | Lost 5 allies 29810 | -5/Factory | Repaired Arm. Heavy Treads 29885 | -5/Factory | Discovered exit to Factory (range 10) 29919 | -5/Factory | Repaired Centrium Heavy Treads? 30020 | -5/Factory | Repaired Adv. Powered Armor 30128 | -5/Factory | Lost 4 allies 30464 | -5/Factory | Entered Upper Caves 30464 | -5/Upper Caves | Accompanied by 3 allies 30628 | -5/Upper Caves | Lost 3 allies 30859 | -5/Upper Caves | Learned Factory trap positions 30964 | -5/Upper Caves | Encountered a Warlord checkpoint 30985 | -5/Upper Caves | Discovered new exit (range 5) 30996 | -5/Upper Caves | Entered another Upper Caves area 31382 | -5/Upper Caves | Spotted B-75 Beast 31412 | -5/Upper Caves | Revealed the true nature of CR-A16's Pointy Stick 31416 | -5/Upper Caves | Destroyed B-75 Beast 31530 | -5/Upper Caves | Learned Factory stockpile data 31766 | -5/Upper Caves | Attracted the attention of an 0b10 checkpoint 31860 | -5/Upper Caves | Discovered exit to Factory (range 7) 32045 | -5/Upper Caves | Entered Factory 32045 | -4/Factory | Evolved 2 slots: Utility x2 32046 | -4/Factory | Loaded intel: 96 trap records 32067 | -4/Factory | Build established: Scavenger-Tank 32126 | -4/Factory | Spotted B-86 Titan 32148 | -4/Factory | Destroyed B-86 Titan 32257 | -4/Factory | Fabricated Arm. Heavy Treads? 32932 | -4/Factory | Cargo convoy interrupted 32932 | -4/Factory | Spotted Executioner 32948 | -4/Factory | Destroyed Executioner 32986 | -4/Factory | Found Prototype Processor 32986 | -4/Factory | Identified Exp. Terrain Scan Processor 32989 | -4/Factory | Destroyed 11 combat bots 33013 | -4/Factory | Lost 5 parts (2u3w) 33039 | -4/Factory | Found Prototype Device 33039 | -4/Factory | Identified Exp. Sensor Array 33045 | -4/Factory | First assault squad dispatched 33065 | -4/Factory | Found PL-3XN's Ring of Power 33070 | -4/Factory | Found Exp. Terrain Scan Processor 33201 | -4/Factory | Discovered new exit (range 11) 33245 | -4/Factory | Destroyed 10 combat bots 33301 | -4/Factory | Entered Armory 33691 | -4/Armory | Zion Offense Resupply teleported in 33801 | -4/Armory | First assault squad dispatched 33992 | -4/Armory | Zion Hacker squad teleported in 34101 | -4/Armory | Energy Cycler disabled 34221 | -4/Armory | System corruption reached 10% 34256 | -4/Armory | Discovered new exit (range 19) 34406 | -4/Armory | Destroyed 10 combat bots 34483 | -4/Armory | Lost 5 parts (1n1u3w) 34665 | -4/Armory | Zion Kinetic Resupply teleported in 34756 | -4/Armory | Discovered new exit (range 12) 34787 | -4/Armory | Discovered new exit (range 18) 34796 | -4/Armory | Build established: Scavenger-Skirmisher 34808 | -4/Armory | Terminal network hard line cut 34854 | -4/Armory | Spotted B-86 Titan 34900 | -4/Armory | Destroyed B-86 Titan 35043 | -4/Armory | Spotted Armor Guard 35043 | -4/Armory | Spotted Armor Guard 35135 | -4/Armory | Destroyed Armor Guard 35172 | -4/Armory | High security lockdown imminent 35184 | -4/Armory | Destroyed Armor Guard 35213 | -4/Armory | Lost 3 parts (1n2u) 35220 | -4/Armory | System corruption reached 30% 35232 | -4/Armory | Found Corrupted Prototype Device 35232 | -4/Armory | Identified Exp. Weapon Cycler 35238 | -4/Armory | Found Superdense Plating 35252 | -4/Armory | High security lockdown engaged 35300 | -4/Armory | Entered Lab 35300 | -4/Lab | Discovered new exit (range 9) 35327 | -4/Lab | Hidden lab's door opened automatically 35327 | -4/Lab | Sensor layout match revealed 35328 | -4/Lab | Gained access to the hidden lab's interior 35432 | -4/Lab | Build established: Scavenger-Gunner 35452 | -4/Lab | Found Prototype Energy Gun 35456 | -4/Lab | Found Prototype Energy Gun 35460 | -4/Lab | Found Prototype Device 35492 | -4/Lab | Found Prototype Hackware 35582 | -4/Lab | Found Alien Artifact 35593 | -4/Lab | Found Alien Artifact 35601 | -4/Lab | Core integrity fell below 50% 35603 | -4/Lab | Found Alien Artifact 35642 | -4/Lab | Detected by scanners 35651 | -4/Lab | Confronted by A5 35793 | -4/Lab | Destroyed A5 35840 | -4/Lab | Identified Integrated Mediator 35840 | -4/Lab | Installed Integrated Mediator, increased core attachment efficiency 35841 | -4/Lab | Identified Transdimensional Reconstructor 35841 | -4/Lab | Warped through subspace 35842 | -4/Lab | Identified Core Reset Matrix 35842 | -4/Lab | Used Core Reset Matrix 35846 | -4/Lab | Sensed 1 artifact in vicinity 35933 | -4/Lab | Found Core Expander 35933 | -4/Lab | Installed Core Expander, added new Propulsion slot 36068 | -4/Lab | Build established: Scavenger-Mutant 36133 | -4/Lab | Discovered new exit (range 15) 36384 | -4/Lab | Unable to decrypt terminal 36384 | -4/Lab | Found LC Capacitor 36600 | -4/Lab | Entered Research 36600 | -3/Research | Evolved 2 slots: Power x1, Propulsion x1 36647 | -3/Research | Build established: Scavenger-Tank 37287 | -3/Research | Found Prototype Processor 37287 | -3/Research | Identified Exp. Melee Analysis Suite 37403 | -3/Research | Identified Tachyon Dispersion Ray 37405 | -3/Research | Identified Hyp. EM Gauss Rifle 37421 | -3/Research | Identified AEGIS Remote Shield 37443 | -3/Research | Build established: Alien-Skirmisher 37443 | -3/Research | System corruption reached 10% 37618 | -3/Research | Zion Heavy squad teleported in 37933 | -3/Research | Terminal network hard line cut 38136 | -3/Research | System corruption reached 30% 38137 | -3/Research | First assault squad dispatched 38544 | -3/Research | Intercept squad dispatched 38563 | -3/Research | Spotted Tracker 38576 | -3/Research | Spotted Tracker 38610 | -3/Research | Spotted Combat Programmer 38616 | -3/Research | Spotted Combat Programmer 38625 | -3/Research | Destroyed Tracker 38642 | -3/Research | Destroyed Tracker 38649 | -3/Research | Destroyed Combat Programmer 38694 | -3/Research | Destroyed Combat Programmer 38715 | -3/Research | Lost 6 parts (1p1n3u1w) 38770 | -3/Research | Identified Deep Network Scanner 38789 | -3/Research | Lost 8 parts (5n1u2w) 38872 | -3/Research | Discovered new exit (range 12) 38884 | -3/Research | Entered another Research area 38884 | -2/Research | Evolved 2 slots: Utility x2 38911 | -2/Research | Discovered new exit (range 15) 38965 | -2/Research | Lost 4 parts (3u1w) 38972 | -2/Research | Zion hero teleported in (CL-ANK) 39008 | -2/Research | Found Unknown Device 39008 | -2/Research | Identified Quantum Capacitor 39054 | -2/Research | Build established: Hacker-Mutant 39175 | -2/Research | Discovered new exit (range 15) 39217 | -2/Research | Spotted B-90 Cyclops 39264 | -2/Research | Destroyed B-90 Cyclops 39377 | -2/Research | Intercept squad dispatched 39409 | -2/Research | Spotted Tracker 39413 | -2/Research | Allies destroyed Tracker 39416 | -2/Research | First assault squad dispatched 39423 | -2/Research | Spotted Tracker 39435 | -2/Research | Destroyed Tracker 39457 | -2/Research | Entered Quarantine 39458 | -2/Quarantine | Detected hypermatrix surge 39458 | -2/Quarantine | Sensed 17 artifacts in vicinity 39533 | -2/Quarantine | Found Prototype Processor 39533 | -2/Quarantine | Identified Exp. Core Analyzer 39586 | -2/Quarantine | Found Hpw. Transdimensional Reconstructor 39601 | -2/Quarantine | Found Subatomic Replicator 39624 | -2/Quarantine | Spotted Fortress 39658 | -2/Quarantine | Discovered new exit (range 5) 39660 | -2/Quarantine | Identified exit to Section 7 39660 | -2/Quarantine | Entered Section 7 39661 | -2/Section 7 | Sensed 20 artifacts in vicinity 39726 | -2/Section 7 | Build established: Scavenger-Mutant 39901 | -2/Section 7 | Spotted S7 Guard 39947 | -2/Section 7 | Lost 5 parts (1p1n3w) 39998 | -2/Section 7 | Core integrity fell below 50% 39998 | -2/Section 7 | Used Subatomic Replicator to create Supercharged TR 39999 | -2/Section 7 | Warped through subspace 40013 | -2/Section 7 | Core integrity fell below 20% 40017 | -2/Section 7 | Destroyed by Y-72 Warden with Railgun Last Messages --------------- 39980_ Kicked S-43 Plague. 39985_ Slammed into S-43 Plague. 39986_ Destabilizing: System corrupted (+1). 39991_ Centrium Leg destroyed. 39993_ Triggered Alarm Trap. 39993_ An alarm sounds. 39993_ ALERT: Alarm triggered, dispatching investigation squad. 39997_ Dropped Hpw. Transdimensional Reconstructor. 39998_ Local interference in replication process, created Supercharged TR. 39999_ Acquired Supercharged TR. 39999_ Warped through subspace. 40001_ Slammed into S-43 Plague. 40012_ Knocked back. 40015_ Slammed into S-43 Plague. 40015_ Adv. Signal Interpreter broken. 40015_ Destabilizing: Short circuit. 40016_ Slammed into S-43 Plague. Map ----- +----------------------------------------------------+ | ???????????????# #% # """ # """S " ##? | | ???????????????# """" + " """" # """ "" % #? | | ???????????????# """ # # """ # * ##? | | ???????????????# """" # #= " #!= """ #?? | | ???????????????# """" # # #!! " " #?? | | ???????????????# """" # # """ # ! """ #?? | | ???????????????# "" # # "R # #?? | | ???????????????# # # """ ####+######?? | | ???????????????#####+#### # """ #??# #??????? | | ????????????????# # # ?? #??# #??????? | | ????????????????# """"" # ###???###??# #??????? | | ????????????????# """"" # #??????????# #??????? | | #######?????????# """"" # #??????????# #??????? | | #?????????# s# % #??????????# #??????? | | #################/; ############ ##?????? | | % %%% #?????? | | ################# #?????? | | ## #??????# # #?????? | | # #????????? """ +% #?????? | | # ####?????? """ # ##################?????? | | / #????????# #??????????????????????? | | # #????????# #??????????????????????? | | # #????????# #??????????????????????? | | ?# #????????# #??????????????????????? | | ?######## #????????# Y #??????????????????????? | | ????????# #????????# s@#??????????????????????? | | ??????### ###+###### s##?????????????????????? | | ?????? s% #?????????????????????? | | ????? # """ ????????????????? | | ????? Y + """ ????????????????? | | ????? # """ ????????????????? | | ??????????+######## ### # """ ????????????????? | | ??????????????????# #?# #?""" ????????????????? | | ??????????????????# #?# #??"" ????????????????? | | ??????????????????# #?# +???"?????????????????? | | ??????????????????# #?# #?????????????????????? | | ??????????????????# #?# #?????????????????????? | | ??????????????????# #?# h?????????????????????? | | ??????????????????# #?# ????????????????????? | | ??????????????????# #?# ????????????????????? | | ??????????????????# #?# ???????????????????? | | ??????????????????# #?# ####??????????????????? | | ??????????????????# #?? #?????????????????????? | | ??????????????????# #?? #?????????????????????? | | ????????????#+#??## ### ???????????????????????? | | ????????????# #??# #??????????????????????????? | | ????????????# #??# #??????????????????????????? | | ????????????# #??# #??????????????????????????? | | ????????????# #??# #??????????????????????????? | | #########???# #??# #??????????????????????????? | +----------------------------------------------------+ Best States ------------- Heat Dissipation 154 Coolant Potential 100 Energy Generation 66 Energy Capacity 735 Matter Stores 300 Matter Capacity 300 Sight Range 16 Robot Scan Range 20 Terrain Scan Range 20 Terrain Scan Density 1010 Jamming Range 16 Power Amplification 40 Base Temperature (-) 200 Armor Coverage 3200 Resistance: KI 25 Resistance: TH 30 Resistance: EM 75 Weapon Shielding 100 Weapon Cycling 30 Phase Shifting 20 Evasion (%) 60 Targeting Accuracy 12 Core Analysis 8 Armor Integrity Analysis 40 Recoil Reduction 4 Energy Filtering 30 Salvage Targeting 1 Offensive Hacking 25 Defensive Hacking 14 Authchip Count 1 Item Schematics ----------------- None Robot Schematics ------------------ None Fabricated ------------ Arm. Heavy Treads | x1 | -7/Factory | Authchip Arm. Heavy Treads | x1 | -7/Factory Arm. Heavy Treads | x1 | -4/Factory Alien Tech Used ----------------- Integrated Mediator Transdimensional Reconstructor Core Reset Matrix Core Expander LC Capacitor Subatomic Replicator Supercharged TR Achievements -------------- None Challenges ------------ None Game ------ Seed ScatterImpactExpander Manual? 0 Play Time 04:06:00 Cumulative 958.2 hours Start 2025.04.25 @ 23:06:03 End 2025.05.04 @ 00:25:47 Sessions 3 Manual Loads 0 Difficulty Rogue Special Mode None Game No. 584 Rogue 577 Adventurer 0 Explorer 7 Win Type - Total 65 Types 23/6/24/2/0/1/6/1/2 Lore% 88 Gallery% 95 Achievement% 85 Wizard Run 0 Options --------- Layout 1 ASCII 0 Keyboard 0 Movement Numpad Keybinds 0 Fullscreen 1 Font 24/Smallcaps Map View 50x35 Zoom Use 0% Tactical HUD 1 Map Filters NONE Filters NONE Steam 1 RUN: c8b3921e-b5c7-492b-abe8-17b2ac06ad0d